Department Family,Entity,Date,Expense Type,Expense Area,Supplier,Transaction Number,AP Amount,Description,Supplier Postcode
Department of Health,NHS Sheffield CCG,28/02/2021,C&M-PMS Contract Value,PRC DELEGATED CO-COMMISSIONING,ABBEY LANE SURGERY,35594566,"24,265.20",BABALP,S8 0BJ
Department of Health,NHS Sheffield CCG,28/02/2021,C&M-PMS DES Minor Surgery,PRC DELEGATED CO-COMMISSIONING,ABBEY LANE SURGERY,35594566,320.00,DEMSUP,S8 0BJ
Department of Health,NHS Sheffield CCG,28/02/2021,C&M-PMS Out of Hours Opt Outs,PRC DELEGATED CO-COMMISSIONING,ABBEY LANE SURGERY,35594566,31.88,APMOOH,S8 0BJ
Department of Health,NHS Sheffield CCG,28/02/2021,C&M-PMS PCN DES Participation,PRC DELEGATED CO-COMMISSIONING,ABBEY LANE SURGERY,35594566,900.11,PARTIP,S8 0BJ
Department of Health,NHS Sheffield CCG,28/02/2021,C&M-PMS PCO Other,PRC DELEGATED CO-COMMISSIONING,ABBEY LANE SURGERY,35594566,"2,360.00",CQCRP,S8 0BJ
Department of Health,NHS Sheffield CCG,28/02/2021,C&M-PMS Prem Notional Rent,PRC DELEGATED CO-COMMISSIONING,ABBEY LANE SURGERY,35594566,"2,166.67",NRENT,S8 0BJ
Department of Health,NHS Sheffield CCG,28/02/2021,C&M-PMS QOF Aspiration,PRC DELEGATED CO-COMMISSIONING,ABBEY LANE SURGERY,35594566,"2,440.19",QUASPP,S8 0BJ
Department of Health,NHS Sheffield CCG,28/02/2021,Cont Care-Physical Disab (65+),CHC ADULT FULLY FUNDED,ABBEYCARE NURSING,35731410,"50,960.56",https://nww.einvoice-prod.sbs.nhs.uk:8179/invoicepdf/cc29eeae-ef60-5a17-adba-b645facd355c,S35 9YY
Department of Health,NHS Sheffield CCG,28/02/2021,Other Gen Supplies & Srv,BEREAVEMENT SERVICE,BARNSLEY HOSPITAL NHS FOUNDATION TRUST,35616698,"64,000.00",,S75 2EP
Department of Health,NHS Sheffield CCG,28/02/2021,Hcare Srv Rec Fdtn Trust-Contract Baseline,ACUTE COMMISSIONING,BARNSLEY HOSPITAL NHS FOUNDATION TRUST,35629766,"131,016.71",,S75 2EP
Department of Health,NHS Sheffield CCG,28/02/2021,C&M-PMS Contract Value,PRC DELEGATED CO-COMMISSIONING,BARNSLEY ROAD SURGERY,35594568,"21,073.10",BABALP,S5 0QJ
Department of Health,NHS Sheffield CCG,28/02/2021,C&M-PMS DES Learn Dsblty Hlth Chk,PRC DELEGATED CO-COMMISSIONING,BARNSLEY ROAD SURGERY,35594568,"1,820.00",LEARNP,S5 0QJ
Department of Health,NHS Sheffield CCG,28/02/2021,C&M-PMS Funding Differential Review,PRC DELEGATED CO-COMMISSIONING,BARNSLEY ROAD SURGERY,35594568,506.44,ZFUNFP,S5 0QJ
Department of Health,NHS Sheffield CCG,28/02/2021,C&M-PMS PCN DES Participation,PRC DELEGATED CO-COMMISSIONING,BARNSLEY ROAD SURGERY,35594568,788.19,PARTIP,S5 0QJ
Department of Health,NHS Sheffield CCG,28/02/2021,C&M-PMS Prem Notional Rent,PRC DELEGATED CO-COMMISSIONING,BARNSLEY ROAD SURGERY,35594568,"2,652.17",NRENT,S5 0QJ
Department of Health,NHS Sheffield CCG,28/02/2021,C&M-PMS QOF Aspiration,PRC DELEGATED CO-COMMISSIONING,BARNSLEY ROAD SURGERY,35594568,"2,289.13",QUASPP,S5 0QJ
Department of Health,NHS Sheffield CCG,28/02/2021,C&M-GMS Global Sum,PRC DELEGATED CO-COMMISSIONING,BASLOW ROAD & SHOREHAM STREET SURGERIES,35767466,"98,933.25",GSUMG,S17 4DR
Department of Health,NHS Sheffield CCG,28/02/2021,C&M-GMS PCN DES Participation,PRC DELEGATED CO-COMMISSIONING,BASLOW ROAD & SHOREHAM STREET SURGERIES,35767466,"3,972.12",PARTIG,S17 4DR
Department of Health,NHS Sheffield CCG,28/02/2021,C&M-GMS Prem Notional Rent,PRC DELEGATED CO-COMMISSIONING,BASLOW ROAD & SHOREHAM STREET SURGERIES,35767466,"8,222.71",NRENT,S17 4DR
Department of Health,NHS Sheffield CCG,28/02/2021,C&M-GMS Prem Water Rates,PRC DELEGATED CO-COMMISSIONING,BASLOW ROAD & SHOREHAM STREET SURGERIES,35767466,97.87,RAMW,S17 4DR
Department of Health,NHS Sheffield CCG,28/02/2021,C&M-GMS QOF Aspiration,PRC DELEGATED CO-COMMISSIONING,BASLOW ROAD & SHOREHAM STREET SURGERIES,35767466,"10,305.33",QUASPG,S17 4DR
Department of Health,NHS Sheffield CCG,28/02/2021,Cont Care-Physical Disab (65+),CHC ADULT FULLY FUNDED,BC SHEFFIELD LTD,35641493,"37,661.29",https://nww.einvoice-prod.sbs.nhs.uk:8179/invoicepdf/dcbef559-3557-5e81-a9c9-68a7aeb7a17e,S9 2TJ
Department of Health,NHS Sheffield CCG,28/02/2021,C&M-PMS Contract Value,PRC DELEGATED CO-COMMISSIONING,BIRLEY HEALTH CENTRE,35594570,"65,453.56",BABALP,S12 3BP
Department of Health,NHS Sheffield CCG,28/02/2021,C&M-PMS DES Minor Surgery,PRC DELEGATED CO-COMMISSIONING,BIRLEY HEALTH CENTRE,35594570,"1,105.00",DEMSUP,S12 3BP
Department of Health,NHS Sheffield CCG,28/02/2021,C&M-PMS Out of Hours Opt Outs,PRC DELEGATED CO-COMMISSIONING,BIRLEY HEALTH CENTRE,35594570,38.17,APMOOH,S12 3BP
Department of Health,NHS Sheffield CCG,28/02/2021,C&M-PMS PCN DES Participation,PRC DELEGATED CO-COMMISSIONING,BIRLEY HEALTH CENTRE,35594570,"2,447.94",PARTIP,S12 3BP
Department of Health,NHS Sheffield CCG,28/02/2021,C&M-PMS Prem Notional Rent,PRC DELEGATED CO-COMMISSIONING,BIRLEY HEALTH CENTRE,35594570,"7,600.58",NRENT,S12 3BP
Department of Health,NHS Sheffield CCG,28/02/2021,C&M-PMS QOF Aspiration,PRC DELEGATED CO-COMMISSIONING,BIRLEY HEALTH CENTRE,35594570,"6,800.34",QUASPP,S12 3BP
Department of Health,NHS Sheffield CCG,28/02/2021,C&M-GMS Cost of Drugs -Prescribing,LOCAL ENHANCED SERVICES,BROOMHILL SURGERY,35767473,"4,228.89",DRGP,S10 5BU
Department of Health,NHS Sheffield CCG,28/02/2021,C&M-GMS DES Minor Surgery,PRC DELEGATED CO-COMMISSIONING,BROOMHILL SURGERY,35767473,600.00,DEMSUG,S10 5BU
Department of Health,NHS Sheffield CCG,28/02/2021,C&M-GMS Global Sum,PRC DELEGATED CO-COMMISSIONING,BROOMHILL SURGERY,35767473,"66,969.60",GSUMG,S10 5BU
Department of Health,NHS Sheffield CCG,28/02/2021,C&M-GMS PCN DES Participation,PRC DELEGATED CO-COMMISSIONING,BROOMHILL SURGERY,35767473,"2,661.46",PARTIG,S10 5BU
Department of Health,NHS Sheffield CCG,28/02/2021,C&M-GMS Prem Cost Rent,PRC DELEGATED CO-COMMISSIONING,BROOMHILL SURGERY,35767473,"2,975.42",COST,S10 5BU
Department of Health,NHS Sheffield CCG,28/02/2021,C&M-GMS Prem Notional Rent,PRC DELEGATED CO-COMMISSIONING,BROOMHILL SURGERY,35767473,"2,612.50",NRENT,S10 5BU
Department of Health,NHS Sheffield CCG,28/02/2021,C&M-GMS Prof Fees Prescribing,PRC DELEGATED CO-COMMISSIONING,BROOMHILL SURGERY,35767473,755.33,DRGPPF,S10 5BU
Department of Health,NHS Sheffield CCG,28/02/2021,C&M-GMS QOF Aspiration,PRC DELEGATED CO-COMMISSIONING,BROOMHILL SURGERY,35767473,"6,610.83",QUASPG,S10 5BU
Department of Health,NHS Sheffield CCG,28/02/2021,C&M-GMS Cost of Drugs -Prescribing,LOCAL ENHANCED SERVICES,BUCHANAN ROAD SURGERY,35767469,102.35,DRGP,S5 8AL
Department of Health,NHS Sheffield CCG,28/02/2021,C&M-GMS DES Learn Dsblty Hlth Chk,PRC DELEGATED CO-COMMISSIONING,BUCHANAN ROAD SURGERY,35767469,"1,960.00",LEARNG,S5 8AL
Department of Health,NHS Sheffield CCG,28/02/2021,C&M-GMS DES Minor Surgery,PRC DELEGATED CO-COMMISSIONING,BUCHANAN ROAD SURGERY,35767469,120.00,DEMSUG,S5 8AL
Department of Health,NHS Sheffield CCG,28/02/2021,C&M-GMS Global Sum,PRC DELEGATED CO-COMMISSIONING,BUCHANAN ROAD SURGERY,35767469,"36,722.96",GSUMG,S5 8AL
Department of Health,NHS Sheffield CCG,28/02/2021,C&M-GMS PCN DES Participation,PRC DELEGATED CO-COMMISSIONING,BUCHANAN ROAD SURGERY,35767469,"1,470.69",PARTIG,S5 8AL
Department of Health,NHS Sheffield CCG,28/02/2021,C&M-GMS Prem Notional Rent,PRC DELEGATED CO-COMMISSIONING,BUCHANAN ROAD SURGERY,35767469,"2,595.83",NRENT,S5 8AL
Department of Health,NHS Sheffield CCG,28/02/2021,C&M-GMS Prof Fees Prescribing,PRC DELEGATED CO-COMMISSIONING,BUCHANAN ROAD SURGERY,35767469,40.04,DRGPPF,S5 8AL
Department of Health,NHS Sheffield CCG,28/02/2021,C&M-GMS QOF Aspiration,PRC DELEGATED CO-COMMISSIONING,BUCHANAN ROAD SURGERY,35767469,"4,322.18",QUASPG,S5 8AL
Department of Health,NHS Sheffield CCG,28/02/2021,C&M-PMS Contract Value,PRC DELEGATED CO-COMMISSIONING,BURNCROSS SURGERY,35594571,"-1,306.96",BABALP,S35 1RN
Department of Health,NHS Sheffield CCG,28/02/2021,C&M-PMS Funding Differential Review,PRC DELEGATED CO-COMMISSIONING,BURNCROSS SURGERY,35594571,"-2,746.32",ZFUNFP,S35 1RN
Department of Health,NHS Sheffield CCG,28/02/2021,C&M-PMS GP Statutory Levy,PRC DELEGATED CO-COMMISSIONING,BURNCROSS SURGERY,35594571,-525.00,STATL,S35 1RN
Department of Health,NHS Sheffield CCG,28/02/2021,C&M-PMS PCN DES Participation,PRC DELEGATED CO-COMMISSIONING,BURNCROSS SURGERY,35594571,"-2,282.33",PARTIP,S35 1RN
Department of Health,NHS Sheffield CCG,28/02/2021,C&M-PMS Prem Rates,PRC DELEGATED CO-COMMISSIONING,BURNCROSS SURGERY,35594571,"-4,533.00",RANDRP,S35 1RN
Department of Health,NHS Sheffield CCG,28/02/2021,C&M-PMS Contract Value,PRC DELEGATED CO-COMMISSIONING,BURNCROSS SURGERY,35594572,"122,804.11",BABALP,S35 1RN
Department of Health,NHS Sheffield CCG,28/02/2021,C&M-PMS DES Minor Surgery,PRC DELEGATED CO-COMMISSIONING,BURNCROSS SURGERY,35594572,550.00,DEMSUP,S35 1RN
Department of Health,NHS Sheffield CCG,28/02/2021,C&M-PMS Funding Differential Review,PRC DELEGATED CO-COMMISSIONING,BURNCROSS SURGERY,35594572,"2,746.32",ZFUNFP,S35 1RN
Department of Health,NHS Sheffield CCG,28/02/2021,C&M-PMS PCN DES Participation,PRC DELEGATED CO-COMMISSIONING,BURNCROSS SURGERY,35594572,"4,568.54",PARTIP,S35 1RN
Department of Health,NHS Sheffield CCG,28/02/2021,C&M-PMS Prem Notional Rent,PRC DELEGATED CO-COMMISSIONING,BURNCROSS SURGERY,35594572,"14,919.67",NRENT,S35 1RN
Department of Health,NHS Sheffield CCG,28/02/2021,C&M-PMS Prem Rates,PRC DELEGATED CO-COMMISSIONING,BURNCROSS SURGERY,35594572,"4,700.89",RANDRP,S35 1RN
Department of Health,NHS Sheffield CCG,28/02/2021,C&M-PMS QOF Aspiration,PRC DELEGATED CO-COMMISSIONING,BURNCROSS SURGERY,35594572,"15,253.36",QUASPP,S35 1RN
Department of Health,NHS Sheffield CCG,28/02/2021,C&M-PMS Contract Value,PRC DELEGATED CO-COMMISSIONING,BURNGREAVE SURGERY,35594574,"58,313.57",BABALP,S3 9DA
Department of Health,NHS Sheffield CCG,28/02/2021,C&M-PMS DES Minor Surgery,PRC DELEGATED CO-COMMISSIONING,BURNGREAVE SURGERY,35594574,"1,050.00",DEMSUP,S3 9DA
Department of Health,NHS Sheffield CCG,28/02/2021,C&M-PMS Out of Hours Opt Outs,PRC DELEGATED CO-COMMISSIONING,BURNGREAVE SURGERY,35594574,90.79,APMOOH,S3 9DA
Department of Health,NHS Sheffield CCG,28/02/2021,C&M-PMS PCN DES Participation,PRC DELEGATED CO-COMMISSIONING,BURNGREAVE SURGERY,35594574,"2,182.17",PARTIP,S3 9DA
Department of Health,NHS Sheffield CCG,28/02/2021,C&M-PMS PCO Locum Sickness,PRC DELEGATED CO-COMMISSIONING,BURNGREAVE SURGERY,35594574,"21,045.96",SICKS,S3 9DA
Department of Health,NHS Sheffield CCG,28/02/2021,C&M-PMS Prem Notional Rent,PRC DELEGATED CO-COMMISSIONING,BURNGREAVE SURGERY,35594574,"6,622.92",NRENT,S3 9DA
Department of Health,NHS Sheffield CCG,28/02/2021,C&M-PMS QOF Aspiration,PRC DELEGATED CO-COMMISSIONING,BURNGREAVE SURGERY,35594574,"5,108.72",QUASPP,S3 9DA
Department of Health,NHS Sheffield CCG,28/02/2021,C&M-GMS Cost of Drugs -Prescribing,LOCAL ENHANCED SERVICES,CARTERKNOWLE & DORE MEDICAL PRACTICE,35767478,"4,784.33",DRGP,S7 2DW
Department of Health,NHS Sheffield CCG,28/02/2021,C&M-GMS DES Learn Dsblty Hlth Chk,PRC DELEGATED CO-COMMISSIONING,CARTERKNOWLE & DORE MEDICAL PRACTICE,35767478,"2,520.00",LEARNG,S7 2DW
Department of Health,NHS Sheffield CCG,28/02/2021,C&M-GMS DES Minor Surgery,PRC DELEGATED CO-COMMISSIONING,CARTERKNOWLE & DORE MEDICAL PRACTICE,35767478,"2,070.00",DEMSUG,S7 2DW
Department of Health,NHS Sheffield CCG,28/02/2021,C&M-GMS Global Sum,PRC DELEGATED CO-COMMISSIONING,CARTERKNOWLE & DORE MEDICAL PRACTICE,35767478,"89,673.33",GSUMG,S7 2DW
Department of Health,NHS Sheffield CCG,28/02/2021,C&M-GMS PCN DES Participation,PRC DELEGATED CO-COMMISSIONING,CARTERKNOWLE & DORE MEDICAL PRACTICE,35767478,"3,484.23",PARTIG,S7 2DW
Department of Health,NHS Sheffield CCG,28/02/2021,C&M-GMS PCO Locum Adop/Pat/Mat,PRC DELEGATED CO-COMMISSIONING,CARTERKNOWLE & DORE MEDICAL PRACTICE,35767478,"4,754.76",LOCADG,S7 2DW
Department of Health,NHS Sheffield CCG,28/02/2021,C&M-GMS Prem Notional Rent,PRC DELEGATED CO-COMMISSIONING,CARTERKNOWLE & DORE MEDICAL PRACTICE,35767478,"7,855.00",NRENT,S7 2DW
Department of Health,NHS Sheffield CCG,28/02/2021,C&M-GMS Prof Fees Prescribing,PRC DELEGATED CO-COMMISSIONING,CARTERKNOWLE & DORE MEDICAL PRACTICE,35767478,464.40,DRGPPF,S7 2DW
Department of Health,NHS Sheffield CCG,28/02/2021,C&M-GMS QOF Aspiration,PRC DELEGATED CO-COMMISSIONING,CARTERKNOWLE & DORE MEDICAL PRACTICE,35767478,"10,268.52",QUASPG,S7 2DW
Department of Health,NHS Sheffield CCG,28/02/2021,C&M-GMS Cost of Drugs -Prescribing,LOCAL ENHANCED SERVICES,CHARNOCK HEALTH PRIMARY CARE CENTRE,35767475,"1,785.91",DRGP,S12 3GH
Department of Health,NHS Sheffield CCG,28/02/2021,C&M-GMS DES Learn Dsblty Hlth Chk,PRC DELEGATED CO-COMMISSIONING,CHARNOCK HEALTH PRIMARY CARE CENTRE,35767475,140.00,LEARNG,S12 3GH
Department of Health,NHS Sheffield CCG,28/02/2021,C&M-GMS DES Minor Surgery,PRC DELEGATED CO-COMMISSIONING,CHARNOCK HEALTH PRIMARY CARE CENTRE,35767475,240.00,DEMSUG,S12 3GH
Department of Health,NHS Sheffield CCG,28/02/2021,C&M-GMS Global Sum,PRC DELEGATED CO-COMMISSIONING,CHARNOCK HEALTH PRIMARY CARE CENTRE,35767475,"44,694.47",GSUMG,S12 3GH
Department of Health,NHS Sheffield CCG,28/02/2021,C&M-GMS PCN DES Participation,PRC DELEGATED CO-COMMISSIONING,CHARNOCK HEALTH PRIMARY CARE CENTRE,35767475,893.45,PARTIG,S12 3GH
Department of Health,NHS Sheffield CCG,28/02/2021,C&M-GMS Prem Actual Rent,PRC DELEGATED CO-COMMISSIONING,CHARNOCK HEALTH PRIMARY CARE CENTRE,35767475,100.00,RENT,S12 3GH
Department of Health,NHS Sheffield CCG,28/02/2021,C&M-GMS Prem Notional Rent,PRC DELEGATED CO-COMMISSIONING,CHARNOCK HEALTH PRIMARY CARE CENTRE,35767475,340.00,NRENT,S12 3GH
Department of Health,NHS Sheffield CCG,28/02/2021,C&M-GMS Prem Water Rates,PRC DELEGATED CO-COMMISSIONING,CHARNOCK HEALTH PRIMARY CARE CENTRE,35767475,179.30,RAMW,S12 3GH
Department of Health,NHS Sheffield CCG,28/02/2021,C&M-GMS Prof Fees Prescribing,PRC DELEGATED CO-COMMISSIONING,CHARNOCK HEALTH PRIMARY CARE CENTRE,35767475,208.18,DRGPPF,S12 3GH
Department of Health,NHS Sheffield CCG,28/02/2021,C&M-GMS QOF Aspiration,PRC DELEGATED CO-COMMISSIONING,CHARNOCK HEALTH PRIMARY CARE CENTRE,35767475,"4,918.11",QUASPG,S12 3GH
Department of Health,NHS Sheffield CCG,28/02/2021,Hcare Srv Rec Fdtn Trust-Contract Baseline,ACUTE COMMISSIONING,CHESTERFIELD ROYAL HOSPITAL NHS FOUNDATION TRUST,35629767,"369,177.00",,S44 5BL
Department of Health,NHS Sheffield CCG,28/02/2021,C&M-APMS Contract Value,PRC DELEGATED CO-COMMISSIONING,CLOVER CITY PRACTICE,35594644,"31,739.43",APMADD,S9 4QH
Department of Health,NHS Sheffield CCG,28/02/2021,C&M-APMS OOH Opt Outs,PRC DELEGATED CO-COMMISSIONING,CLOVER CITY PRACTICE,35594644,1.31,APMOOA,S9 4QH
Department of Health,NHS Sheffield CCG,28/02/2021,C&M-APMS PCN DES Participation,PRC DELEGATED CO-COMMISSIONING,CLOVER CITY PRACTICE,35594644,563.87,PARTIA,S9 4QH
Department of Health,NHS Sheffield CCG,28/02/2021,C&M-PMS PCN DES Participation,PRC DELEGATED CO-COMMISSIONING,CLOVER CITY PRACTICE,35594644,564.83,PARTIP,S9 4QH
Department of Health,NHS Sheffield CCG,28/02/2021,C&M-PMS QOF Aspiration,PRC DELEGATED CO-COMMISSIONING,CLOVER CITY PRACTICE,35594644,"1,589.35",QUASPP,S9 4QH
Department of Health,NHS Sheffield CCG,28/02/2021,C&M-APMS Contract Value,PRC DELEGATED CO-COMMISSIONING,CLOVER GROUP PRACTICE,35594575,"-22,328.60",APMADD,S9 4QH
Department of Health,NHS Sheffield CCG,28/02/2021,C&M-APMS OOH Opt Outs,PRC DELEGATED CO-COMMISSIONING,CLOVER GROUP PRACTICE,35594575,"-6,333.64",APMOOA,S9 4QH
Department of Health,NHS Sheffield CCG,28/02/2021,C&M-APMS PCN DES Participation,PRC DELEGATED CO-COMMISSIONING,CLOVER GROUP PRACTICE,35594575,"-2,478.23",PARTIA,S9 4QH
Department of Health,NHS Sheffield CCG,28/02/2021,C&M-APMS Prem Healthcentre Rent,PRC DELEGATED CO-COMMISSIONING,CLOVER GROUP PRACTICE,35594575,"-2,776.30",HEALTA,S9 4QH
Department of Health,NHS Sheffield CCG,28/02/2021,C&M-PMS GP Statutory Levy,PRC DELEGATED CO-COMMISSIONING,CLOVER GROUP PRACTICE,35594575,-582.16,STATL,S9 4QH
Department of Health,NHS Sheffield CCG,28/02/2021,C&M-APMS Contract Value,PRC DELEGATED CO-COMMISSIONING,CLOVER GROUP PRACTICE,35594576,"132,741.00",APMADD,S9 4QH
Department of Health,NHS Sheffield CCG,28/02/2021,C&M-APMS OOH Opt Outs,PRC DELEGATED CO-COMMISSIONING,CLOVER GROUP PRACTICE,35594576,"1,041.88",APMOOA,S9 4QH
Department of Health,NHS Sheffield CCG,28/02/2021,C&M-APMS PCN DES Participation,PRC DELEGATED CO-COMMISSIONING,CLOVER GROUP PRACTICE,35594576,"2,478.23",PARTIA,S9 4QH
Department of Health,NHS Sheffield CCG,28/02/2021,C&M-APMS PCO Locum Sickness,PRC DELEGATED CO-COMMISSIONING,CLOVER GROUP PRACTICE,35594576,"9,247.80",SICKSA,S9 4QH
Department of Health,NHS Sheffield CCG,28/02/2021,C&M-APMS Prem Actual Rent,PRC DELEGATED CO-COMMISSIONING,CLOVER GROUP PRACTICE,35594576,"5,169.68",RENTA,S9 4QH
Department of Health,NHS Sheffield CCG,28/02/2021,C&M-APMS Prem Healthcentre Rent,PRC DELEGATED CO-COMMISSIONING,CLOVER GROUP PRACTICE,35594576,"59,788.21",HEALTA,S9 4QH
Department of Health,NHS Sheffield CCG,28/02/2021,C&M-APMS Prem Notional Rent,PRC DELEGATED CO-COMMISSIONING,CLOVER GROUP PRACTICE,35594576,"2,804.17",NRENTA,S9 4QH
Department of Health,NHS Sheffield CCG,28/02/2021,C&M-PMS DES Learn Dsblty Hlth Chk,PRC DELEGATED CO-COMMISSIONING,CLOVER GROUP PRACTICE,35594576,"2,660.00",LEARNP,S9 4QH
Department of Health,NHS Sheffield CCG,28/02/2021,C&M-PMS Out of Hours Opt Outs,PRC DELEGATED CO-COMMISSIONING,CLOVER GROUP PRACTICE,35594576,23.51,APMOOH,S9 4QH
Department of Health,NHS Sheffield CCG,28/02/2021,C&M-PMS PCN DES Participation,PRC DELEGATED CO-COMMISSIONING,CLOVER GROUP PRACTICE,35594576,"2,482.45",PARTIP,S9 4QH
Department of Health,NHS Sheffield CCG,28/02/2021,C&M-PMS QOF Aspiration,PRC DELEGATED CO-COMMISSIONING,CLOVER GROUP PRACTICE,35594576,"11,362.38",QUASPP,S9 4QH
Department of Health,NHS Sheffield CCG,28/02/2021,C&M-GMS Cost of Drugs -Prescribing,LOCAL ENHANCED SERVICES,CROOKES PRACTICE,35767483,"1,420.48",DRGP,S10 1GN
Department of Health,NHS Sheffield CCG,28/02/2021,C&M-GMS DES Learn Dsblty Hlth Chk,PRC DELEGATED CO-COMMISSIONING,CROOKES PRACTICE,35767483,"1,960.00",LEARNG,S10 1GN
Department of Health,NHS Sheffield CCG,28/02/2021,C&M-GMS Global Sum,PRC DELEGATED CO-COMMISSIONING,CROOKES PRACTICE,35767483,"54,534.63",GSUMG,S10 1GN
Department of Health,NHS Sheffield CCG,28/02/2021,C&M-GMS PCN DES Participation,PRC DELEGATED CO-COMMISSIONING,CROOKES PRACTICE,35767483,"2,142.02",PARTIG,S10 1GN
Department of Health,NHS Sheffield CCG,28/02/2021,C&M-GMS Prem Notional Rent,PRC DELEGATED CO-COMMISSIONING,CROOKES PRACTICE,35767483,"3,874.67",NRENT,S10 1GN
Department of Health,NHS Sheffield CCG,28/02/2021,C&M-GMS Prem Water Rates,PRC DELEGATED CO-COMMISSIONING,CROOKES PRACTICE,35767483,150.00,RAMW,S10 1GN
Department of Health,NHS Sheffield CCG,28/02/2021,C&M-GMS Prof Fees Prescribing,PRC DELEGATED CO-COMMISSIONING,CROOKES PRACTICE,35767483,419.04,DRGPPF,S10 1GN
Department of Health,NHS Sheffield CCG,28/02/2021,C&M-GMS QOF Aspiration,PRC DELEGATED CO-COMMISSIONING,CROOKES PRACTICE,35767483,"4,910.43",QUASPG,S10 1GN
Department of Health,NHS Sheffield CCG,28/02/2021,Cont Care- Prior Year Payments,ADULT JOINT FUNDED CONTINUING CARE,CYGNET LEARNING DISABILITIES MIDLANDS LTD,35641922,"52,672.77",https://nww.einvoice-prod.sbs.nhs.uk:8179/invoicepdf/0164ebaf-acec-57c3-83fe-4173bb5380fe,TN15 7RS
Department of Health,NHS Sheffield CCG,28/02/2021,C&M-PMS Contract Value,PRC DELEGATED CO-COMMISSIONING,DEEPCAR MEDICAL CENTRE,35594578,"42,390.90",BABALP,S36 2RA
Department of Health,NHS Sheffield CCG,28/02/2021,C&M-PMS Out of Hours Opt Outs,PRC DELEGATED CO-COMMISSIONING,DEEPCAR MEDICAL CENTRE,35594578,44.91,APMOOH,S36 2RA
Department of Health,NHS Sheffield CCG,28/02/2021,C&M-PMS PCN DES Participation,PRC DELEGATED CO-COMMISSIONING,DEEPCAR MEDICAL CENTRE,35594578,"1,581.53",PARTIP,S36 2RA
Department of Health,NHS Sheffield CCG,28/02/2021,C&M-PMS Prem Healthcentre Rent,PRC DELEGATED CO-COMMISSIONING,DEEPCAR MEDICAL CENTRE,35594578,"30,655.23",HEALTH,S36 2RA
Department of Health,NHS Sheffield CCG,28/02/2021,C&M-PMS QOF Aspiration,PRC DELEGATED CO-COMMISSIONING,DEEPCAR MEDICAL CENTRE,35594578,"4,079.29",QUASPP,S36 2RA
Department of Health,NHS Sheffield CCG,28/02/2021,C&M-GMS Cost of Drugs -Prescribing,LOCAL ENHANCED SERVICES,DEVONSHIRE GREEN MEDICAL CENTRE,35767486,"3,043.28",DRGP,S3 7SF
Department of Health,NHS Sheffield CCG,28/02/2021,C&M-GMS DES Minor Surgery,PRC DELEGATED CO-COMMISSIONING,DEVONSHIRE GREEN MEDICAL CENTRE,35767486,80.00,DEMSUG,S3 7SF
Department of Health,NHS Sheffield CCG,28/02/2021,C&M-GMS Global Sum,PRC DELEGATED CO-COMMISSIONING,DEVONSHIRE GREEN MEDICAL CENTRE,35767486,"48,240.28",GSUMG,S3 7SF
Department of Health,NHS Sheffield CCG,28/02/2021,C&M-GMS PCN DES Participation,PRC DELEGATED CO-COMMISSIONING,DEVONSHIRE GREEN MEDICAL CENTRE,35767486,"1,872.01",PARTIG,S3 7SF
Department of Health,NHS Sheffield CCG,28/02/2021,C&M-GMS Prem Notional Rent,PRC DELEGATED CO-COMMISSIONING,DEVONSHIRE GREEN MEDICAL CENTRE,35767486,"5,987.50",NRENT,S3 7SF
Department of Health,NHS Sheffield CCG,28/02/2021,C&M-GMS Prof Fees Prescribing,PRC DELEGATED CO-COMMISSIONING,DEVONSHIRE GREEN MEDICAL CENTRE,35767486,701.94,DRGPPF,S3 7SF
Department of Health,NHS Sheffield CCG,28/02/2021,C&M-GMS QOF Aspiration,PRC DELEGATED CO-COMMISSIONING,DEVONSHIRE GREEN MEDICAL CENTRE,35767486,"4,846.82",QUASPG,S3 7SF
Department of Health,NHS Sheffield CCG,28/02/2021,Other Gen Supplies & Srv,CLINICAL LEADS,DONCASTER AND BASSETLAW HOSPITALS NHS FOUNDATION TRUST,35528497,"110,440.00",Rapid Diagnostic Service Funding Top Up agreed with Gill Newman,WF3 1WE
Department of Health,NHS Sheffield CCG,28/02/2021,Seconded-Basic Sal-Staff fm oth org,BEREAVEMENT SERVICE,DONCASTER AND BASSETLAW HOSPITALS NHS FOUNDATION TRUST,35616748,"22,876.50",SALARY NHS RECHARGES FOR,WF3 1WE
Department of Health,NHS Sheffield CCG,28/02/2021,Seconded-Employer's NHI Costs,BEREAVEMENT SERVICE,DONCASTER AND BASSETLAW HOSPITALS NHS FOUNDATION TRUST,35616748,"2,426.64",,WF3 1WE
Department of Health,NHS Sheffield CCG,28/02/2021,Hcare Srv Rec Fdtn Trust-Contract Baseline,ACUTE COMMISSIONING,DONCASTER AND BASSETLAW HOSPITALS NHS FOUNDATION TRUST,35629768,"79,729.44",,WF3 1WE
Department of Health,NHS Sheffield CCG,28/02/2021,C&M-PMS Contract Value,PRC DELEGATED CO-COMMISSIONING,DOVERCOURT SURGERY,35594580,"76,608.78",BABALP,S2 5FX
Department of Health,NHS Sheffield CCG,28/02/2021,C&M-PMS DES Minor Surgery,PRC DELEGATED CO-COMMISSIONING,DOVERCOURT SURGERY,35594580,960.00,DEMSUP,S2 5FX
Department of Health,NHS Sheffield CCG,28/02/2021,C&M-PMS Out of Hours Opt Outs,PRC DELEGATED CO-COMMISSIONING,DOVERCOURT SURGERY,35594580,9.88,APMOOH,S2 5FX
Department of Health,NHS Sheffield CCG,28/02/2021,C&M-PMS PCN DES Participation,PRC DELEGATED CO-COMMISSIONING,DOVERCOURT SURGERY,35594580,"2,813.81",PARTIP,S2 5FX
Department of Health,NHS Sheffield CCG,28/02/2021,C&M-PMS PCO Locum Sickness,PRC DELEGATED CO-COMMISSIONING,DOVERCOURT SURGERY,35594580,"12,000.00",SICKS,S2 5FX
Department of Health,NHS Sheffield CCG,28/02/2021,C&M-PMS Prem Actual Rent,PRC DELEGATED CO-COMMISSIONING,DOVERCOURT SURGERY,35594580,"12,400.00",RENT,S2 5FX
Department of Health,NHS Sheffield CCG,28/02/2021,C&M-PMS Prem Notional Rent,PRC DELEGATED CO-COMMISSIONING,DOVERCOURT SURGERY,35594580,"1,708.33",NRENT,S2 5FX
Department of Health,NHS Sheffield CCG,28/02/2021,C&M-PMS Prem Water Rates,PRC DELEGATED CO-COMMISSIONING,DOVERCOURT SURGERY,35594580,97.07,RAMWP,S2 5FX
Department of Health,NHS Sheffield CCG,28/02/2021,C&M-PMS QOF Aspiration,PRC DELEGATED CO-COMMISSIONING,DOVERCOURT SURGERY,35594580,"7,547.35",QUASPP,S2 5FX
Department of Health,NHS Sheffield CCG,28/02/2021,C&M-PMS Contract Value,PRC DELEGATED CO-COMMISSIONING,DR MEHROTRA & PARTNER,35594582,"25,077.95",BABALP,S9 5DH
Department of Health,NHS Sheffield CCG,28/02/2021,C&M-PMS DES Learn Dsblty Hlth Chk,PRC DELEGATED CO-COMMISSIONING,DR MEHROTRA & PARTNER,35594582,420.00,LEARNP,S9 5DH
Department of Health,NHS Sheffield CCG,28/02/2021,C&M-PMS Funding Differential Review,PRC DELEGATED CO-COMMISSIONING,DR MEHROTRA & PARTNER,35594582,520.47,ZFUNFP,S9 5DH
Department of Health,NHS Sheffield CCG,28/02/2021,C&M-PMS PCN DES Participation,PRC DELEGATED CO-COMMISSIONING,DR MEHROTRA & PARTNER,35594582,945.10,PARTIP,S9 5DH
Department of Health,NHS Sheffield CCG,28/02/2021,C&M-PMS Prem Notional Rent,PRC DELEGATED CO-COMMISSIONING,DR MEHROTRA & PARTNER,35594582,"5,157.29",NRENT,S9 5DH
Department of Health,NHS Sheffield CCG,28/02/2021,C&M-PMS QOF Aspiration,PRC DELEGATED CO-COMMISSIONING,DR MEHROTRA & PARTNER,35594582,"2,581.66",QUASPP,S9 5DH
Department of Health,NHS Sheffield CCG,28/02/2021,C&M-PMS Contract Value,PRC DELEGATED CO-COMMISSIONING,DR MILNER & PARTNERS,35594584,"77,922.06",BABALP,S6 4JQ
Department of Health,NHS Sheffield CCG,28/02/2021,C&M-PMS DES Learn Dsblty Hlth Chk,PRC DELEGATED CO-COMMISSIONING,DR MILNER & PARTNERS,35594584,"1,680.00",LEARNP,S6 4JQ
Department of Health,NHS Sheffield CCG,28/02/2021,C&M-PMS DES Minor Surgery,PRC DELEGATED CO-COMMISSIONING,DR MILNER & PARTNERS,35594584,"1,000.00",DEMSUP,S6 4JQ
Department of Health,NHS Sheffield CCG,28/02/2021,C&M-PMS Out of Hours Opt Outs,PRC DELEGATED CO-COMMISSIONING,DR MILNER & PARTNERS,35594584,60.89,APMOOH,S6 4JQ
Department of Health,NHS Sheffield CCG,28/02/2021,C&M-PMS PCN DES Participation,PRC DELEGATED CO-COMMISSIONING,DR MILNER & PARTNERS,35594584,"2,907.56",PARTIP,S6 4JQ
Department of Health,NHS Sheffield CCG,28/02/2021,C&M-PMS Prem Actual Rent,PRC DELEGATED CO-COMMISSIONING,DR MILNER & PARTNERS,35594584,"11,382.00",RENT,S6 4JQ
Department of Health,NHS Sheffield CCG,28/02/2021,C&M-PMS Prem Notional Rent,PRC DELEGATED CO-COMMISSIONING,DR MILNER & PARTNERS,35594584,"4,462.42",NRENT,S6 4JQ
Department of Health,NHS Sheffield CCG,28/02/2021,C&M-PMS Prem Rates,PRC DELEGATED CO-COMMISSIONING,DR MILNER & PARTNERS,35594584,"2,766.00",RANDRP,S6 4JQ
Department of Health,NHS Sheffield CCG,28/02/2021,C&M-PMS Prem Water Rates,PRC DELEGATED CO-COMMISSIONING,DR MILNER & PARTNERS,35594584,489.15,RAMWP,S6 4JQ
Department of Health,NHS Sheffield CCG,28/02/2021,C&M-PMS QOF Aspiration,PRC DELEGATED CO-COMMISSIONING,DR MILNER & PARTNERS,35594584,"6,594.77",QUASPP,S6 4JQ
Department of Health,NHS Sheffield CCG,28/02/2021,C&M-GMS Cost of Drugs -Prescribing,LOCAL ENHANCED SERVICES,DUKE MEDICAL CENTRE,35767494,"2,015.73",DRGP,S2 2TD
Department of Health,NHS Sheffield CCG,28/02/2021,C&M-GMS DES Learn Dsblty Hlth Chk,PRC DELEGATED CO-COMMISSIONING,DUKE MEDICAL CENTRE,35767494,280.00,LEARNG,S2 2TD
Department of Health,NHS Sheffield CCG,28/02/2021,C&M-GMS DES Minor Surgery,PRC DELEGATED CO-COMMISSIONING,DUKE MEDICAL CENTRE,35767494,720.00,DEMSUG,S2 2TD
Department of Health,NHS Sheffield CCG,28/02/2021,C&M-GMS Global Sum,PRC DELEGATED CO-COMMISSIONING,DUKE MEDICAL CENTRE,35767494,"62,666.70",GSUMG,S2 2TD
Department of Health,NHS Sheffield CCG,28/02/2021,C&M-GMS PCN DES Participation,PRC DELEGATED CO-COMMISSIONING,DUKE MEDICAL CENTRE,35767494,"2,313.14",PARTIG,S2 2TD
Department of Health,NHS Sheffield CCG,28/02/2021,C&M-GMS Prem Notional Rent,PRC DELEGATED CO-COMMISSIONING,DUKE MEDICAL CENTRE,35767494,"5,721.67",NRENT,S2 2TD
Department of Health,NHS Sheffield CCG,28/02/2021,C&M-GMS Prof Fees Prescribing,PRC DELEGATED CO-COMMISSIONING,DUKE MEDICAL CENTRE,35767494,411.03,DRGPPF,S2 2TD
Department of Health,NHS Sheffield CCG,28/02/2021,C&M-GMS QOF Aspiration,PRC DELEGATED CO-COMMISSIONING,DUKE MEDICAL CENTRE,35767494,"5,286.81",QUASPG,S2 2TD
Department of Health,NHS Sheffield CCG,28/02/2021,C&M-PMS Contract Value,PRC DELEGATED CO-COMMISSIONING,DUNNINC ROAD SURGERY,35594586,"21,770.95",BABALP,S5 0AE
Department of Health,NHS Sheffield CCG,28/02/2021,C&M-PMS DES Learn Dsblty Hlth Chk,PRC DELEGATED CO-COMMISSIONING,DUNNINC ROAD SURGERY,35594586,140.00,LEARNP,S5 0AE
Department of Health,NHS Sheffield CCG,28/02/2021,C&M-PMS Funding Differential Review,PRC DELEGATED CO-COMMISSIONING,DUNNINC ROAD SURGERY,35594586,506.77,ZFUNFP,S5 0AE
Department of Health,NHS Sheffield CCG,28/02/2021,C&M-PMS PCN DES Participation,PRC DELEGATED CO-COMMISSIONING,DUNNINC ROAD SURGERY,35594586,817.62,PARTIP,S5 0AE
Department of Health,NHS Sheffield CCG,28/02/2021,C&M-PMS Prem Notional Rent,PRC DELEGATED CO-COMMISSIONING,DUNNINC ROAD SURGERY,35594586,"1,695.83",NRENT,S5 0AE
Department of Health,NHS Sheffield CCG,28/02/2021,C&M-PMS QOF Aspiration,PRC DELEGATED CO-COMMISSIONING,DUNNINC ROAD SURGERY,35594586,"1,748.41",QUASPP,S5 0AE
Department of Health,NHS Sheffield CCG,28/02/2021,C&M-PMS Contract Value,PRC DELEGATED CO-COMMISSIONING,DYKES HALL MEDICAL CENTRE,35594587,"-1,162.29",BABALP,S6 4GQ
Department of Health,NHS Sheffield CCG,28/02/2021,C&M-PMS DES Extended Hours Access,PRC DELEGATED CO-COMMISSIONING,DYKES HALL MEDICAL CENTRE,35594587,"-4,338.04",EXTHDP,S6 4GQ
Department of Health,NHS Sheffield CCG,28/02/2021,C&M-PMS Funding Differential Review,PRC DELEGATED CO-COMMISSIONING,DYKES HALL MEDICAL CENTRE,35594587,"-1,473.36",ZFUNFP,S6 4GQ
Department of Health,NHS Sheffield CCG,28/02/2021,C&M-PMS GP Statutory Levy,PRC DELEGATED CO-COMMISSIONING,DYKES HALL MEDICAL CENTRE,35594587,-330.58,STATL,S6 4GQ
Department of Health,NHS Sheffield CCG,28/02/2021,C&M-PMS Out of Hours Opt Outs,PRC DELEGATED CO-COMMISSIONING,DYKES HALL MEDICAL CENTRE,35594587,"-3,441.40",APMOOH,S6 4GQ
Department of Health,NHS Sheffield CCG,28/02/2021,C&M-PMS PCN DES Clinical Director,PRC DELEGATED CO-COMMISSIONING,DYKES HALL MEDICAL CENTRE,35594587,"-2,160.04",CLINDP,S6 4GQ
Department of Health,NHS Sheffield CCG,28/02/2021,C&M-PMS PCN DES PCN support,LOCAL ENHANCED SERVICES,DYKES HALL MEDICAL CENTRE,35594587,"-4,487.63",PCNSUP,S6 4GQ
Department of Health,NHS Sheffield CCG,28/02/2021,C&M-PMS PCN DES Participation,PRC DELEGATED CO-COMMISSIONING,DYKES HALL MEDICAL CENTRE,35594587,"-1,355.09",PARTIP,S6 4GQ
Department of Health,NHS Sheffield CCG,28/02/2021,C&M-PMS Contract Value,PRC DELEGATED CO-COMMISSIONING,DYKES HALL MEDICAL CENTRE,35594588,"72,296.17",BABALP,S6 4GQ
Department of Health,NHS Sheffield CCG,28/02/2021,C&M-PMS DES Extended Hours Access,PRC DELEGATED CO-COMMISSIONING,DYKES HALL MEDICAL CENTRE,35594588,"8,682.06",EXTHDP,S6 4GQ
Department of Health,NHS Sheffield CCG,28/02/2021,C&M-PMS DES Minor Surgery,PRC DELEGATED CO-COMMISSIONING,DYKES HALL MEDICAL CENTRE,35594588,320.00,DEMSUP,S6 4GQ
Department of Health,NHS Sheffield CCG,28/02/2021,C&M-PMS Funding Differential Review,PRC DELEGATED CO-COMMISSIONING,DYKES HALL MEDICAL CENTRE,35594588,"1,473.36",ZFUNFP,S6 4GQ
Department of Health,NHS Sheffield CCG,28/02/2021,C&M-PMS Out of Hours Opt Outs,PRC DELEGATED CO-COMMISSIONING,DYKES HALL MEDICAL CENTRE,35594588,54.94,APMOOH,S6 4GQ
Department of Health,NHS Sheffield CCG,28/02/2021,C&M-PMS PCN DES Clinical Director,PRC DELEGATED CO-COMMISSIONING,DYKES HALL MEDICAL CENTRE,35594588,"4,314.10",CLINDP,S6 4GQ
Department of Health,NHS Sheffield CCG,28/02/2021,C&M-PMS PCN DES PCN support,LOCAL ENHANCED SERVICES,DYKES HALL MEDICAL CENTRE,35594588,"8,975.25",PCNSUP,S6 4GQ
Department of Health,NHS Sheffield CCG,28/02/2021,C&M-PMS PCN DES Participation,PRC DELEGATED CO-COMMISSIONING,DYKES HALL MEDICAL CENTRE,35594588,"2,712.49",PARTIP,S6 4GQ
Department of Health,NHS Sheffield CCG,28/02/2021,C&M-PMS PCO Locum Adop/Pat/Mat,PRC DELEGATED CO-COMMISSIONING,DYKES HALL MEDICAL CENTRE,35594588,"3,708.34",SICKC,S6 4GQ
Department of Health,NHS Sheffield CCG,28/02/2021,C&M-PMS PCO Other,PRC DELEGATED CO-COMMISSIONING,DYKES HALL MEDICAL CENTRE,35594588,"5,972.00",CQCRP,S6 4GQ
Department of Health,NHS Sheffield CCG,28/02/2021,C&M-PMS Prem Notional Rent,PRC DELEGATED CO-COMMISSIONING,DYKES HALL MEDICAL CENTRE,35594588,"5,406.24",NRENT,S6 4GQ
Department of Health,NHS Sheffield CCG,28/02/2021,C&M-PMS QOF Aspiration,PRC DELEGATED CO-COMMISSIONING,DYKES HALL MEDICAL CENTRE,35594588,"8,087.38",QUASPP,S6 4GQ
Department of Health,NHS Sheffield CCG,28/02/2021,C&M-PMS Contract Value,PRC DELEGATED CO-COMMISSIONING,EAST BANK MEDICAL CENTRE,35594590,"50,300.28",BABALP,S2 2AG
Department of Health,NHS Sheffield CCG,28/02/2021,C&M-PMS DES Learn Dsblty Hlth Chk,PRC DELEGATED CO-COMMISSIONING,EAST BANK MEDICAL CENTRE,35594590,"4,620.00",LEARNP,S2 2AG
Department of Health,NHS Sheffield CCG,28/02/2021,C&M-PMS Out of Hours Opt Outs,PRC DELEGATED CO-COMMISSIONING,EAST BANK MEDICAL CENTRE,35594590,14.91,APMOOH,S2 2AG
Department of Health,NHS Sheffield CCG,28/02/2021,C&M-PMS PCN DES Participation,PRC DELEGATED CO-COMMISSIONING,EAST BANK MEDICAL CENTRE,35594590,"1,875.96",PARTIP,S2 2AG
Department of Health,NHS Sheffield CCG,28/02/2021,C&M-PMS Prem Notional Rent,PRC DELEGATED CO-COMMISSIONING,EAST BANK MEDICAL CENTRE,35594590,"10,583.33",NRENT,S2 2AG
Department of Health,NHS Sheffield CCG,28/02/2021,C&M-PMS QOF Aspiration,PRC DELEGATED CO-COMMISSIONING,EAST BANK MEDICAL CENTRE,35594590,"5,136.41",QUASPP,S2 2AG
Department of Health,NHS Sheffield CCG,28/02/2021,C&M-GMS Cost of Drugs -Prescribing,LOCAL ENHANCED SERVICES,ECCLESFIELD GROUP PRACTICE,35767490,"2,160.06",DRGP,S35 9XQ
Department of Health,NHS Sheffield CCG,28/02/2021,C&M-GMS DES Extended Hours Access,PRC DELEGATED CO-COMMISSIONING,ECCLESFIELD GROUP PRACTICE,35767490,"10,328.70",EXTHDG,S35 9XQ
Department of Health,NHS Sheffield CCG,28/02/2021,C&M-GMS DES Learn Dsblty Hlth Chk,PRC DELEGATED CO-COMMISSIONING,ECCLESFIELD GROUP PRACTICE,35767490,140.00,LEARNG,S35 9XQ
Department of Health,NHS Sheffield CCG,28/02/2021,C&M-GMS DES Minor Surgery,PRC DELEGATED CO-COMMISSIONING,ECCLESFIELD GROUP PRACTICE,35767490,840.00,DEMSUG,S35 9XQ
Department of Health,NHS Sheffield CCG,28/02/2021,C&M-GMS Global Sum,PRC DELEGATED CO-COMMISSIONING,ECCLESFIELD GROUP PRACTICE,35767490,"72,807.45",GSUMG,S35 9XQ
Department of Health,NHS Sheffield CCG,28/02/2021,C&M-GMS PCN DES Clinical Director,PRC DELEGATED CO-COMMISSIONING,ECCLESFIELD GROUP PRACTICE,35767490,"5,132.32",CLINDG,S35 9XQ
Department of Health,NHS Sheffield CCG,28/02/2021,C&M-GMS PCN DES PCN support,LOCAL ENHANCED SERVICES,ECCLESFIELD GROUP PRACTICE,35767490,"10,677.50",PCNSUG,S35 9XQ
Department of Health,NHS Sheffield CCG,28/02/2021,C&M-GMS PCN DES Participation,PRC DELEGATED CO-COMMISSIONING,ECCLESFIELD GROUP PRACTICE,35767490,"2,879.35",PARTIG,S35 9XQ
Department of Health,NHS Sheffield CCG,28/02/2021,C&M-GMS PCO Locum Adop/Pat/Mat,PRC DELEGATED CO-COMMISSIONING,ECCLESFIELD GROUP PRACTICE,35767490,"3,760.00",LOCADG,S35 9XQ
Department of Health,NHS Sheffield CCG,28/02/2021,C&M-GMS Prem Notional Rent,PRC DELEGATED CO-COMMISSIONING,ECCLESFIELD GROUP PRACTICE,35767490,"6,805.42",NRENT,S35 9XQ
Department of Health,NHS Sheffield CCG,28/02/2021,C&M-GMS Prem Water Rates,PRC DELEGATED CO-COMMISSIONING,ECCLESFIELD GROUP PRACTICE,35767490,388.06,RAMW,S35 9XQ
Department of Health,NHS Sheffield CCG,28/02/2021,C&M-GMS Prof Fees Prescribing,PRC DELEGATED CO-COMMISSIONING,ECCLESFIELD GROUP PRACTICE,35767490,370.99,DRGPPF,S35 9XQ
Department of Health,NHS Sheffield CCG,28/02/2021,C&M-GMS QOF Aspiration,PRC DELEGATED CO-COMMISSIONING,ECCLESFIELD GROUP PRACTICE,35767490,"9,221.39",QUASPG,S35 9XQ
Department of Health,NHS Sheffield CCG,28/02/2021,C&M-GMS Cost of Drugs -Prescribing,LOCAL ENHANCED SERVICES,ELM LANE SURGERY,35767492,975.84,DRGP,S5 7TW
Department of Health,NHS Sheffield CCG,28/02/2021,C&M-GMS DES Minor Surgery,PRC DELEGATED CO-COMMISSIONING,ELM LANE SURGERY,35767492,40.00,DEMSUG,S5 7TW
Department of Health,NHS Sheffield CCG,28/02/2021,C&M-GMS Global Sum,PRC DELEGATED CO-COMMISSIONING,ELM LANE SURGERY,35767492,"43,737.39",GSUMG,S5 7TW
Department of Health,NHS Sheffield CCG,28/02/2021,C&M-GMS PCN DES Participation,PRC DELEGATED CO-COMMISSIONING,ELM LANE SURGERY,35767492,"1,703.93",PARTIG,S5 7TW
Department of Health,NHS Sheffield CCG,28/02/2021,C&M-GMS Prem Notional Rent,PRC DELEGATED CO-COMMISSIONING,ELM LANE SURGERY,35767492,"5,343.00",NRENT,S5 7TW
Department of Health,NHS Sheffield CCG,28/02/2021,C&M-GMS Prof Fees Prescribing,PRC DELEGATED CO-COMMISSIONING,ELM LANE SURGERY,35767492,165.48,DRGPPF,S5 7TW
Department of Health,NHS Sheffield CCG,28/02/2021,C&M-GMS QOF Aspiration,PRC DELEGATED CO-COMMISSIONING,ELM LANE SURGERY,35767492,"4,787.76",QUASPG,S5 7TW
Department of Health,NHS Sheffield CCG,28/02/2021,Cont Care-Physical Disab (<65),CHC ADULT FULLY FUNDED,FAIRWINDS HEALTH CARE LTD,35637112,"36,410.76",CHC SCHEDULE FEBRUARY 2021 - Fairwinds Nursing Home,S61 1AJ
Department of Health,NHS Sheffield CCG,28/02/2021,C&M-PMS Contract Value,PRC DELEGATED CO-COMMISSIONING,FALKLAND HOUSE,35594594,"26,887.11",BABALP,S11 7PL
Department of Health,NHS Sheffield CCG,28/02/2021,C&M-PMS DES Minor Surgery,PRC DELEGATED CO-COMMISSIONING,FALKLAND HOUSE,35594594,320.00,DEMSUP,S11 7PL
Department of Health,NHS Sheffield CCG,28/02/2021,C&M-PMS Out of Hours Opt Outs,PRC DELEGATED CO-COMMISSIONING,FALKLAND HOUSE,35594594,8.04,APMOOH,S11 7PL
Department of Health,NHS Sheffield CCG,28/02/2021,C&M-PMS PCN DES Participation,PRC DELEGATED CO-COMMISSIONING,FALKLAND HOUSE,35594594,994.89,PARTIP,S11 7PL
Department of Health,NHS Sheffield CCG,28/02/2021,C&M-PMS Prem Notional Rent,PRC DELEGATED CO-COMMISSIONING,FALKLAND HOUSE,35594594,"1,866.67",NRENT,S11 7PL
Department of Health,NHS Sheffield CCG,28/02/2021,C&M-PMS Prem Water Rates,PRC DELEGATED CO-COMMISSIONING,FALKLAND HOUSE,35594594,157.66,RAMWP,S11 7PL
Department of Health,NHS Sheffield CCG,28/02/2021,C&M-PMS QOF Aspiration,PRC DELEGATED CO-COMMISSIONING,FALKLAND HOUSE,35594594,"2,962.47",QUASPP,S11 7PL
Department of Health,NHS Sheffield CCG,28/02/2021,C&M-GMS Cost of Drugs -Prescribing,LOCAL ENHANCED SERVICES,FAR LANE MEDICAL CENTRE,35767501,"1,388.46",DRGP,S6 4FA
Department of Health,NHS Sheffield CCG,28/02/2021,C&M-GMS DES Learn Dsblty Hlth Chk,PRC DELEGATED CO-COMMISSIONING,FAR LANE MEDICAL CENTRE,35767501,840.00,LEARNG,S6 4FA
Department of Health,NHS Sheffield CCG,28/02/2021,C&M-GMS DES Minor Surgery,PRC DELEGATED CO-COMMISSIONING,FAR LANE MEDICAL CENTRE,35767501,"3,010.00",DEMSUG,S6 4FA
Department of Health,NHS Sheffield CCG,28/02/2021,C&M-GMS Global Sum,PRC DELEGATED CO-COMMISSIONING,FAR LANE MEDICAL CENTRE,35767501,"57,586.40",GSUMG,S6 4FA
Department of Health,NHS Sheffield CCG,28/02/2021,C&M-GMS PCN DES Participation,PRC DELEGATED CO-COMMISSIONING,FAR LANE MEDICAL CENTRE,35767501,"2,277.76",PARTIG,S6 4FA
Department of Health,NHS Sheffield CCG,28/02/2021,C&M-GMS Prem Notional Rent,PRC DELEGATED CO-COMMISSIONING,FAR LANE MEDICAL CENTRE,35767501,"3,504.17",NRENT,S6 4FA
Department of Health,NHS Sheffield CCG,28/02/2021,C&M-GMS Prem Water Rates,PRC DELEGATED CO-COMMISSIONING,FAR LANE MEDICAL CENTRE,35767501,167.79,RAMW,S6 4FA
Department of Health,NHS Sheffield CCG,28/02/2021,C&M-GMS Prof Fees Prescribing,PRC DELEGATED CO-COMMISSIONING,FAR LANE MEDICAL CENTRE,35767501,322.96,DRGPPF,S6 4FA
Department of Health,NHS Sheffield CCG,28/02/2021,C&M-GMS QOF Aspiration,PRC DELEGATED CO-COMMISSIONING,FAR LANE MEDICAL CENTRE,35767501,"6,055.38",QUASPG,S6 4FA
Department of Health,NHS Sheffield CCG,28/02/2021,C&M-PMS Contract Value,PRC DELEGATED CO-COMMISSIONING,FIRTH PARK SURGERY,35594592,"77,948.73",BABALP,S5 6HH
Department of Health,NHS Sheffield CCG,28/02/2021,C&M-PMS DES Minor Surgery,PRC DELEGATED CO-COMMISSIONING,FIRTH PARK SURGERY,35594592,415.00,DEMSUP,S5 6HH
Department of Health,NHS Sheffield CCG,28/02/2021,C&M-PMS Out of Hours Opt Outs,PRC DELEGATED CO-COMMISSIONING,FIRTH PARK SURGERY,35594592,12.31,APMOOH,S5 6HH
Department of Health,NHS Sheffield CCG,28/02/2021,C&M-PMS PCN DES Participation,PRC DELEGATED CO-COMMISSIONING,FIRTH PARK SURGERY,35594592,"2,909.44",PARTIP,S5 6HH
Department of Health,NHS Sheffield CCG,28/02/2021,C&M-PMS Prem Notional Rent,PRC DELEGATED CO-COMMISSIONING,FIRTH PARK SURGERY,35594592,"4,500.00",NRENT,S5 6HH
Department of Health,NHS Sheffield CCG,28/02/2021,C&M-PMS Prem Rates,PRC DELEGATED CO-COMMISSIONING,FIRTH PARK SURGERY,35594592,"1,844.00",RANDRP,S5 6HH
Department of Health,NHS Sheffield CCG,28/02/2021,C&M-PMS QOF Aspiration,PRC DELEGATED CO-COMMISSIONING,FIRTH PARK SURGERY,35594592,"7,425.15",QUASPP,S5 6HH
Department of Health,NHS Sheffield CCG,28/02/2021,C&M-PCN DES PHARMACY TECHNICIANS,PRC DELEGATED CO-COMMISSIONING,FORGE HEALTH GROUP,35580585,"1,808.77",,S3 9DL
Department of Health,NHS Sheffield CCG,28/02/2021,C&M-PMS C&M-APMS PCN DES Physician Assoc,PRC DELEGATED CO-COMMISSIONING,FORGE HEALTH GROUP,35580585,"3,429.01",,S3 9DL
Department of Health,NHS Sheffield CCG,28/02/2021,C&M-PMS PCN DES Clin Pharmacist,PRC DELEGATED CO-COMMISSIONING,FORGE HEALTH GROUP,35580585,"21,154.17",,S3 9DL
Department of Health,NHS Sheffield CCG,28/02/2021,C&M-PMS PCN DES Soc Prescribing,PRC DELEGATED CO-COMMISSIONING,FORGE HEALTH GROUP,35580585,"7,781.64",,S3 9DL
Department of Health,NHS Sheffield CCG,28/02/2021,C&M-PCN DES PHARMACY TECHNICIANS,PRC DELEGATED CO-COMMISSIONING,FORGE HEALTH GROUP,35580632,"1,572.84",,S3 9DL
Department of Health,NHS Sheffield CCG,28/02/2021,C&M-PMS C&M-APMS PCN DES Physician Assoc,PRC DELEGATED CO-COMMISSIONING,FORGE HEALTH GROUP,35580632,"2,612.71",,S3 9DL
Department of Health,NHS Sheffield CCG,28/02/2021,C&M-PMS PCN DES Clin Pharmacist,PRC DELEGATED CO-COMMISSIONING,FORGE HEALTH GROUP,35580632,"14,793.49",,S3 9DL
Department of Health,NHS Sheffield CCG,28/02/2021,C&M-PMS PCN DES Soc Prescribing,PRC DELEGATED CO-COMMISSIONING,FORGE HEALTH GROUP,35580632,"7,600.51",,S3 9DL
Department of Health,NHS Sheffield CCG,28/02/2021,C&M-PMS Contract Value,PRC DELEGATED CO-COMMISSIONING,FORGE HEALTH GROUP,35594641,"-2,655.01",BABALP,S3 9DL
Department of Health,NHS Sheffield CCG,28/02/2021,C&M-PMS DES Extended Hours Access,PRC DELEGATED CO-COMMISSIONING,FORGE HEALTH GROUP,35594641,"-6,849.44",EXTHDP,S3 9DL
Department of Health,NHS Sheffield CCG,28/02/2021,C&M-PMS GP Statutory Levy,PRC DELEGATED CO-COMMISSIONING,FORGE HEALTH GROUP,35594641,-516.71,STATL,S3 9DL
Department of Health,NHS Sheffield CCG,28/02/2021,C&M-PMS Out of Hours Opt Outs,PRC DELEGATED CO-COMMISSIONING,FORGE HEALTH GROUP,35594641,"-5,883.56",APMOOH,S3 9DL
Department of Health,NHS Sheffield CCG,28/02/2021,C&M-PMS PCN DES Clinical Director,PRC DELEGATED CO-COMMISSIONING,FORGE HEALTH GROUP,35594641,"-3,410.55",CLINDP,S3 9DL
Department of Health,NHS Sheffield CCG,28/02/2021,C&M-PMS PCN DES PCN support,LOCAL ENHANCED SERVICES,FORGE HEALTH GROUP,35594641,"-7,085.63",PCNSUP,S3 9DL
Department of Health,NHS Sheffield CCG,28/02/2021,C&M-PMS PCN DES Participation,PRC DELEGATED CO-COMMISSIONING,FORGE HEALTH GROUP,35594641,"-2,286.18",PARTIP,S3 9DL
Department of Health,NHS Sheffield CCG,28/02/2021,C&M-PMS Prem Healthcentre Rent,PRC DELEGATED CO-COMMISSIONING,FORGE HEALTH GROUP,35594641,-927.37,HEALTH,S3 9DL
Department of Health,NHS Sheffield CCG,28/02/2021,C&M-PMS Prem Notional Rent,PRC DELEGATED CO-COMMISSIONING,FORGE HEALTH GROUP,35594641,"-1,589.77",NRENT,S3 9DL
Department of Health,NHS Sheffield CCG,28/02/2021,C&M-PMS Contract Value,PRC DELEGATED CO-COMMISSIONING,FORGE HEALTH GROUP,35594642,"123,756.27",BABALP,S3 9DL
Department of Health,NHS Sheffield CCG,28/02/2021,C&M-PMS DES Extended Hours Access,PRC DELEGATED CO-COMMISSIONING,FORGE HEALTH GROUP,35594642,"13,708.32",EXTHDP,S3 9DL
Department of Health,NHS Sheffield CCG,28/02/2021,C&M-PMS DES Minor Surgery,PRC DELEGATED CO-COMMISSIONING,FORGE HEALTH GROUP,35594642,"1,360.00",DEMSUP,S3 9DL
Department of Health,NHS Sheffield CCG,28/02/2021,C&M-PMS Out of Hours Opt Outs,PRC DELEGATED CO-COMMISSIONING,FORGE HEALTH GROUP,35594642,126.70,APMOOH,S3 9DL
Department of Health,NHS Sheffield CCG,28/02/2021,C&M-PMS PCN DES Clinical Director,PRC DELEGATED CO-COMMISSIONING,FORGE HEALTH GROUP,35594642,"6,811.65",CLINDP,S3 9DL
Department of Health,NHS Sheffield CCG,28/02/2021,C&M-PMS PCN DES PCN support,LOCAL ENHANCED SERVICES,FORGE HEALTH GROUP,35594642,"14,171.25",PCNSUP,S3 9DL
Department of Health,NHS Sheffield CCG,28/02/2021,C&M-PMS PCN DES Participation,PRC DELEGATED CO-COMMISSIONING,FORGE HEALTH GROUP,35594642,"4,576.26",PARTIP,S3 9DL
Department of Health,NHS Sheffield CCG,28/02/2021,C&M-PMS PCO Locum Adop/Pat/Mat,PRC DELEGATED CO-COMMISSIONING,FORGE HEALTH GROUP,35594642,"7,743.60",SICKC,S3 9DL
Department of Health,NHS Sheffield CCG,28/02/2021,C&M-PMS Prem Healthcentre Rent,PRC DELEGATED CO-COMMISSIONING,FORGE HEALTH GROUP,35594642,"35,472.33",HEALTH,S3 9DL
Department of Health,NHS Sheffield CCG,28/02/2021,C&M-PMS Prem Notional Rent,PRC DELEGATED CO-COMMISSIONING,FORGE HEALTH GROUP,35594642,"11,481.43",NRENT,S3 9DL
Department of Health,NHS Sheffield CCG,28/02/2021,C&M-PMS QOF Aspiration,PRC DELEGATED CO-COMMISSIONING,FORGE HEALTH GROUP,35594642,"11,197.01",QUASPP,S3 9DL
Department of Health,NHS Sheffield CCG,28/02/2021,C&M-PMS Contract Value,PRC DELEGATED CO-COMMISSIONING,FOXHILL MEDICAL CENTRE SHEFFIELD,35594640,"52,509.47",BABALP,S6 1GA
Department of Health,NHS Sheffield CCG,28/02/2021,C&M-PMS DES Learn Dsblty Hlth Chk,PRC DELEGATED CO-COMMISSIONING,FOXHILL MEDICAL CENTRE SHEFFIELD,35594640,700.00,LEARNP,S6 1GA
Department of Health,NHS Sheffield CCG,28/02/2021,C&M-PMS DES Minor Surgery,PRC DELEGATED CO-COMMISSIONING,FOXHILL MEDICAL CENTRE SHEFFIELD,35594640,495.00,DEMSUP,S6 1GA
Department of Health,NHS Sheffield CCG,28/02/2021,C&M-PMS Funding Differential Review,PRC DELEGATED CO-COMMISSIONING,FOXHILL MEDICAL CENTRE SHEFFIELD,35594640,"1,157.94",ZFUNFP,S6 1GA
Department of Health,NHS Sheffield CCG,28/02/2021,C&M-PMS Out of Hours Opt Outs,PRC DELEGATED CO-COMMISSIONING,FOXHILL MEDICAL CENTRE SHEFFIELD,35594640,88.76,APMOOH,S6 1GA
Department of Health,NHS Sheffield CCG,28/02/2021,C&M-PMS PCN DES Participation,PRC DELEGATED CO-COMMISSIONING,FOXHILL MEDICAL CENTRE SHEFFIELD,35594640,"1,963.57",PARTIP,S6 1GA
Department of Health,NHS Sheffield CCG,28/02/2021,C&M-PMS Prem Healthcentre Rent,PRC DELEGATED CO-COMMISSIONING,FOXHILL MEDICAL CENTRE SHEFFIELD,35594640,"47,880.58",HEALTH,S6 1GA
Department of Health,NHS Sheffield CCG,28/02/2021,C&M-PMS QOF Aspiration,PRC DELEGATED CO-COMMISSIONING,FOXHILL MEDICAL CENTRE SHEFFIELD,35594640,"5,429.40",QUASPP,S6 1GA
Department of Health,NHS Sheffield CCG,28/02/2021,C&M-PMS Contract Value,PRC DELEGATED CO-COMMISSIONING,GLEADLESS MEDICAL CENTRE,35594596,"70,297.55",BABALP,S14 1PQ
Department of Health,NHS Sheffield CCG,28/02/2021,C&M-PMS DES Minor Surgery,PRC DELEGATED CO-COMMISSIONING,GLEADLESS MEDICAL CENTRE,35594596,120.00,DEMSUP,S14 1PQ
Department of Health,NHS Sheffield CCG,28/02/2021,C&M-PMS Funding Differential Review,PRC DELEGATED CO-COMMISSIONING,GLEADLESS MEDICAL CENTRE,35594596,"1,547.97",ZFUNFP,S14 1PQ
Department of Health,NHS Sheffield CCG,28/02/2021,C&M-PMS Out of Hours Opt Outs,PRC DELEGATED CO-COMMISSIONING,GLEADLESS MEDICAL CENTRE,35594596,152.92,APMOOH,S14 1PQ
Department of Health,NHS Sheffield CCG,28/02/2021,C&M-PMS PCN DES Participation,PRC DELEGATED CO-COMMISSIONING,GLEADLESS MEDICAL CENTRE,35594596,"2,632.76",PARTIP,S14 1PQ
Department of Health,NHS Sheffield CCG,28/02/2021,C&M-PMS Prem Notional Rent,PRC DELEGATED CO-COMMISSIONING,GLEADLESS MEDICAL CENTRE,35594596,"6,750.00",NRENT,S14 1PQ
Department of Health,NHS Sheffield CCG,28/02/2021,C&M-PMS QOF Aspiration,PRC DELEGATED CO-COMMISSIONING,GLEADLESS MEDICAL CENTRE,35594596,"7,390.52",QUASPP,S14 1PQ
Department of Health,NHS Sheffield CCG,28/02/2021,C&M-GMS Cost of Drugs -Prescribing,LOCAL ENHANCED SERVICES,GRENOSIDE SURGERY,35767509,"3,810.91",DRGP,S35 8NX
Department of Health,NHS Sheffield CCG,28/02/2021,C&M-GMS DES Minor Surgery,PRC DELEGATED CO-COMMISSIONING,GRENOSIDE SURGERY,35767509,165.00,DEMSUG,S35 8NX
Department of Health,NHS Sheffield CCG,28/02/2021,C&M-GMS Global Sum,PRC DELEGATED CO-COMMISSIONING,GRENOSIDE SURGERY,35767509,"63,170.11",GSUMG,S35 8NX
Department of Health,NHS Sheffield CCG,28/02/2021,C&M-GMS PCN DES Participation,PRC DELEGATED CO-COMMISSIONING,GRENOSIDE SURGERY,35767509,"2,442.24",PARTIG,S35 8NX
Department of Health,NHS Sheffield CCG,28/02/2021,C&M-GMS Prem Notional Rent,PRC DELEGATED CO-COMMISSIONING,GRENOSIDE SURGERY,35767509,"8,110.42",NRENT,S35 8NX
Department of Health,NHS Sheffield CCG,28/02/2021,C&M-GMS Prem Water Rates,PRC DELEGATED CO-COMMISSIONING,GRENOSIDE SURGERY,35767509,127.46,RAMW,S35 8NX
Department of Health,NHS Sheffield CCG,28/02/2021,C&M-GMS Prof Fees Prescribing,PRC DELEGATED CO-COMMISSIONING,GRENOSIDE SURGERY,35767509,731.31,DRGPPF,S35 8NX
Department of Health,NHS Sheffield CCG,28/02/2021,C&M-GMS QOF Aspiration,PRC DELEGATED CO-COMMISSIONING,GRENOSIDE SURGERY,35767509,"5,840.97",QUASPG,S35 8NX
Department of Health,NHS Sheffield CCG,28/02/2021,C&M-GMS Cost of Drugs -Prescribing,LOCAL ENHANCED SERVICES,GREYSTONES MEDICAL CENTRE,35767511,569.99,DRGP,S11 7BJ
Department of Health,NHS Sheffield CCG,28/02/2021,C&M-GMS DES Minor Surgery,PRC DELEGATED CO-COMMISSIONING,GREYSTONES MEDICAL CENTRE,35767511,40.00,DEMSUG,S11 7BJ
Department of Health,NHS Sheffield CCG,28/02/2021,C&M-GMS Global Sum,PRC DELEGATED CO-COMMISSIONING,GREYSTONES MEDICAL CENTRE,35767511,"20,452.81",GSUMG,S11 7BJ
Department of Health,NHS Sheffield CCG,28/02/2021,C&M-GMS PCN DES Participation,PRC DELEGATED CO-COMMISSIONING,GREYSTONES MEDICAL CENTRE,35767511,814.36,PARTIG,S11 7BJ
Department of Health,NHS Sheffield CCG,28/02/2021,C&M-GMS Prem Notional Rent,PRC DELEGATED CO-COMMISSIONING,GREYSTONES MEDICAL CENTRE,35767511,"2,885.42",NRENT,S11 7BJ
Department of Health,NHS Sheffield CCG,28/02/2021,C&M-GMS Prem Rates,PRC DELEGATED CO-COMMISSIONING,GREYSTONES MEDICAL CENTRE,35767511,707.00,RANDR,S11 7BJ
Department of Health,NHS Sheffield CCG,28/02/2021,C&M-GMS Prof Fees Prescribing,PRC DELEGATED CO-COMMISSIONING,GREYSTONES MEDICAL CENTRE,35767511,136.12,DRGPPF,S11 7BJ
Department of Health,NHS Sheffield CCG,28/02/2021,C&M-GMS QOF Aspiration,PRC DELEGATED CO-COMMISSIONING,GREYSTONES MEDICAL CENTRE,35767511,"2,326.23",QUASPG,S11 7BJ
Department of Health,NHS Sheffield CCG,28/02/2021,C&M-PMS Contract Value,PRC DELEGATED CO-COMMISSIONING,HACKENTHORPE MEDICAL CENTRE,35594598,"49,874.12",BABALP,S12 4LA
Department of Health,NHS Sheffield CCG,28/02/2021,C&M-PMS DES Learn Dsblty Hlth Chk,PRC DELEGATED CO-COMMISSIONING,HACKENTHORPE MEDICAL CENTRE,35594598,840.00,LEARNP,S12 4LA
Department of Health,NHS Sheffield CCG,28/02/2021,C&M-PMS DES Minor Surgery,PRC DELEGATED CO-COMMISSIONING,HACKENTHORPE MEDICAL CENTRE,35594598,360.00,DEMSUP,S12 4LA
Department of Health,NHS Sheffield CCG,28/02/2021,C&M-PMS Out of Hours Opt Outs,PRC DELEGATED CO-COMMISSIONING,HACKENTHORPE MEDICAL CENTRE,35594598,37.24,APMOOH,S12 4LA
Department of Health,NHS Sheffield CCG,28/02/2021,C&M-PMS PCN DES Participation,PRC DELEGATED CO-COMMISSIONING,HACKENTHORPE MEDICAL CENTRE,35594598,"1,853.42",PARTIP,S12 4LA
Department of Health,NHS Sheffield CCG,28/02/2021,C&M-PMS Prem Notional Rent,PRC DELEGATED CO-COMMISSIONING,HACKENTHORPE MEDICAL CENTRE,35594598,"5,116.67",NRENT,S12 4LA
Department of Health,NHS Sheffield CCG,28/02/2021,C&M-PMS QOF Aspiration,PRC DELEGATED CO-COMMISSIONING,HACKENTHORPE MEDICAL CENTRE,35594598,"6,490.74",QUASPP,S12 4LA
Department of Health,NHS Sheffield CCG,28/02/2021,C&M-GMS Cost of Drugs -Prescribing,LOCAL ENHANCED SERVICES,HANDSWORTH MEDICAL PRACTICE SHEFFIELD,35767507,"1,205.97",DRGP,S13 9BZ
Department of Health,NHS Sheffield CCG,28/02/2021,C&M-GMS DES Minor Surgery,PRC DELEGATED CO-COMMISSIONING,HANDSWORTH MEDICAL PRACTICE SHEFFIELD,35767507,560.00,DEMSUG,S13 9BZ
Department of Health,NHS Sheffield CCG,28/02/2021,C&M-GMS Global Sum,PRC DELEGATED CO-COMMISSIONING,HANDSWORTH MEDICAL PRACTICE SHEFFIELD,35767507,"81,849.00",GSUMG,S13 9BZ
Department of Health,NHS Sheffield CCG,28/02/2021,C&M-GMS PCN DES Participation,PRC DELEGATED CO-COMMISSIONING,HANDSWORTH MEDICAL PRACTICE SHEFFIELD,35767507,"3,202.29",PARTIG,S13 9BZ
Department of Health,NHS Sheffield CCG,28/02/2021,C&M-GMS Prem Notional Rent,PRC DELEGATED CO-COMMISSIONING,HANDSWORTH MEDICAL PRACTICE SHEFFIELD,35767507,"3,321.66",NRENT,S13 9BZ
Department of Health,NHS Sheffield CCG,28/02/2021,C&M-GMS Prof Fees Prescribing,PRC DELEGATED CO-COMMISSIONING,HANDSWORTH MEDICAL PRACTICE SHEFFIELD,35767507,344.30,DRGPPF,S13 9BZ
Department of Health,NHS Sheffield CCG,28/02/2021,C&M-GMS QOF Aspiration,PRC DELEGATED CO-COMMISSIONING,HANDSWORTH MEDICAL PRACTICE SHEFFIELD,35767507,"7,866.23",QUASPG,S13 9BZ
Department of Health,NHS Sheffield CCG,28/02/2021,C&M-GMS Global Sum,PRC DELEGATED CO-COMMISSIONING,HAROLD STREET MEDICAL CENTRE,35767504,"19,830.15",GSUMG,S6 3QW
Department of Health,NHS Sheffield CCG,28/02/2021,C&M-GMS PCN DES Participation,PRC DELEGATED CO-COMMISSIONING,HAROLD STREET MEDICAL CENTRE,35767504,810.91,PARTIG,S6 3QW
Department of Health,NHS Sheffield CCG,28/02/2021,C&M-GMS Prem Notional Rent,PRC DELEGATED CO-COMMISSIONING,HAROLD STREET MEDICAL CENTRE,35767504,"2,337.50",NRENT,S6 3QW
Department of Health,NHS Sheffield CCG,28/02/2021,C&M-GMS QOF Aspiration,PRC DELEGATED CO-COMMISSIONING,HAROLD STREET MEDICAL CENTRE,35767504,"2,231.83",QUASPG,S6 3QW
Department of Health,NHS Sheffield CCG,28/02/2021,C&M-GMS Cost of Drugs -Prescribing,LOCAL ENHANCED SERVICES,HEALTH CARE SURGERY,35767517,"1,412.98",DRGP,S5 8GS
Department of Health,NHS Sheffield CCG,28/02/2021,C&M-GMS DES Minor Surgery,PRC DELEGATED CO-COMMISSIONING,HEALTH CARE SURGERY,35767517,160.00,DEMSUG,S5 8GS
Department of Health,NHS Sheffield CCG,28/02/2021,C&M-GMS Global Sum,PRC DELEGATED CO-COMMISSIONING,HEALTH CARE SURGERY,35767517,"40,343.73",GSUMG,S5 8GS
Department of Health,NHS Sheffield CCG,28/02/2021,C&M-GMS PCN DES Participation,PRC DELEGATED CO-COMMISSIONING,HEALTH CARE SURGERY,35767517,"1,606.00",PARTIG,S5 8GS
Department of Health,NHS Sheffield CCG,28/02/2021,C&M-GMS Prem Notional Rent,PRC DELEGATED CO-COMMISSIONING,HEALTH CARE SURGERY,35767517,"3,862.50",NRENT,S5 8GS
Department of Health,NHS Sheffield CCG,28/02/2021,C&M-GMS Prem Rates,PRC DELEGATED CO-COMMISSIONING,HEALTH CARE SURGERY,35767517,755.00,RANDR,S5 8GS
Department of Health,NHS Sheffield CCG,28/02/2021,C&M-GMS Prof Fees Prescribing,PRC DELEGATED CO-COMMISSIONING,HEALTH CARE SURGERY,35767517,360.32,DRGPPF,S5 8GS
Department of Health,NHS Sheffield CCG,28/02/2021,C&M-GMS QOF Aspiration,PRC DELEGATED CO-COMMISSIONING,HEALTH CARE SURGERY,35767517,"4,354.34",QUASPG,S5 8GS
Department of Health,NHS Sheffield CCG,28/02/2021,C&M-GMS Cost of Drugs -Prescribing,LOCAL ENHANCED SERVICES,HEELEY GREEN SURGERY,35767513,"5,607.25",DRGP,S2 3AJ
Department of Health,NHS Sheffield CCG,28/02/2021,C&M-GMS DES Learn Dsblty Hlth Chk,PRC DELEGATED CO-COMMISSIONING,HEELEY GREEN SURGERY,35767513,840.00,LEARNG,S2 3AJ
Department of Health,NHS Sheffield CCG,28/02/2021,C&M-GMS Global Sum,PRC DELEGATED CO-COMMISSIONING,HEELEY GREEN SURGERY,35767513,"42,888.89",GSUMG,S2 3AJ
Department of Health,NHS Sheffield CCG,28/02/2021,C&M-GMS PCN DES Participation,PRC DELEGATED CO-COMMISSIONING,HEELEY GREEN SURGERY,35767513,"1,716.38",PARTIG,S2 3AJ
Department of Health,NHS Sheffield CCG,28/02/2021,C&M-GMS Prem Notional Rent,PRC DELEGATED CO-COMMISSIONING,HEELEY GREEN SURGERY,35767513,"3,254.17",NRENT,S2 3AJ
Department of Health,NHS Sheffield CCG,28/02/2021,C&M-GMS Prof Fees Prescribing,PRC DELEGATED CO-COMMISSIONING,HEELEY GREEN SURGERY,35767513,"1,198.39",DRGPPF,S2 3AJ
Department of Health,NHS Sheffield CCG,28/02/2021,C&M-GMS QOF Aspiration,PRC DELEGATED CO-COMMISSIONING,HEELEY GREEN SURGERY,35767513,"4,729.13",QUASPG,S2 3AJ
Department of Health,NHS Sheffield CCG,28/02/2021,C&M-GMS Cost of Drugs -Prescribing,LOCAL ENHANCED SERVICES,HOLLIES MEDICAL CENTRE,35767515,"3,040.25",DRGP,S11 9AL
Department of Health,NHS Sheffield CCG,28/02/2021,C&M-GMS DES Learn Dsblty Hlth Chk,PRC DELEGATED CO-COMMISSIONING,HOLLIES MEDICAL CENTRE,35767515,140.00,LEARNG,S11 9AL
Department of Health,NHS Sheffield CCG,28/02/2021,C&M-GMS Global Sum,PRC DELEGATED CO-COMMISSIONING,HOLLIES MEDICAL CENTRE,35767515,"64,789.43",GSUMG,S11 9AL
Department of Health,NHS Sheffield CCG,28/02/2021,C&M-GMS PCN DES Participation,PRC DELEGATED CO-COMMISSIONING,HOLLIES MEDICAL CENTRE,35767515,"2,495.24",PARTIG,S11 9AL
Department of Health,NHS Sheffield CCG,28/02/2021,C&M-GMS Prem Notional Rent,PRC DELEGATED CO-COMMISSIONING,HOLLIES MEDICAL CENTRE,35767515,"6,200.01",NRENT,S11 9AL
Department of Health,NHS Sheffield CCG,28/02/2021,C&M-GMS Prof Fees Prescribing,PRC DELEGATED CO-COMMISSIONING,HOLLIES MEDICAL CENTRE,35767515,600.53,DRGPPF,S11 9AL
Department of Health,NHS Sheffield CCG,28/02/2021,C&M-GMS QOF Aspiration,PRC DELEGATED CO-COMMISSIONING,HOLLIES MEDICAL CENTRE,35767515,"7,315.52",QUASPG,S11 9AL
Department of Health,NHS Sheffield CCG,28/02/2021,Cont Care-Physical Disab (<65),CHC ADULT FULLY FUNDED,HORIZON CARE HOMES LTD,35637157,"65,624.37",CHC SCHEDULE FEBRUARY 2021 - Wood Hill House,S25 3QA
Department of Health,NHS Sheffield CCG,28/02/2021,Cont Care-Physical Disab (<65),CHC ADULT FULLY FUNDED,HORIZON CARE HOMES LTD,35637160,"104,924.52",CHC SCHEDULE FEBRUARY 2021 - Wood Hill Lodge,S25 3QA
Department of Health,NHS Sheffield CCG,28/02/2021,Clinical&Medical-Serv Recd-F Trsts,ACUTE COMMISSIONING,HUMBER TEACHING NHS FOUNDATION TRUST,35629765,"50,667.00",,WF3 1WE
Department of Health,NHS Sheffield CCG,28/02/2021,External Consultancy Fees,BEREAVEMENT SERVICE,IDEAL HEALTH CONSULTANTS LTD,35528453,"51,240.00",https://nww.einvoice-prod.sbs.nhs.uk:8179/invoicepdf/b9e73b9e-74e7-5d62-8acb-f228bf4850c9,GU1 4SJ
Department of Health,NHS Sheffield CCG,28/02/2021,External Consultancy Fees,BEREAVEMENT SERVICE,IDEAL HEALTH CONSULTANTS LTD,35528532,"100,320.00",https://nww.einvoice-prod.sbs.nhs.uk:8179/invoicepdf/90f98a7a-93fb-5df9-b5db-5677bcbee514,GU1 4SJ
Department of Health,NHS Sheffield CCG,28/02/2021,External Consultancy Fees,BEREAVEMENT SERVICE,IDEAL HEALTH CONSULTANTS LTD,35822888,"33,696.00",https://nww.einvoice-prod.sbs.nhs.uk:8179/invoicepdf/0ffb9b85-cf23-598b-b5e4-26dc146bcd1d,GU1 4SJ
Department of Health,NHS Sheffield CCG,28/02/2021,External Consultancy Fees,BEREAVEMENT SERVICE,IDEAL HEALTH CONSULTANTS LTD,35822895,"35,491.20",https://nww.einvoice-prod.sbs.nhs.uk:8179/invoicepdf/055d1ad8-83d7-5bf1-b595-d3c19e496afb,GU1 4SJ
Department of Health,NHS Sheffield CCG,28/02/2021,Cont Care-Physical Disab (<65),CHC ADULT FULLY FUNDED,INLET LTD,35637166,"54,533.45",CHC SCHEDULE FEBRUARY 2021 - Loxley Court (Inlet Ltd),S48NB
Department of Health,NHS Sheffield CCG,28/02/2021,C&M-PMS Contract Value,PRC DELEGATED CO-COMMISSIONING,JAUNTY SPRINGS HEALTH CENTRE,35594600,"31,727.46",BABALP,S12 3DZ
Department of Health,NHS Sheffield CCG,28/02/2021,C&M-PMS DES Extended Hours Access,PRC DELEGATED CO-COMMISSIONING,JAUNTY SPRINGS HEALTH CENTRE,35594600,"8,433.94",EXTHDP,S12 3DZ
Department of Health,NHS Sheffield CCG,28/02/2021,C&M-PMS DES Minor Surgery,PRC DELEGATED CO-COMMISSIONING,JAUNTY SPRINGS HEALTH CENTRE,35594600,40.00,DEMSUP,S12 3DZ
Department of Health,NHS Sheffield CCG,28/02/2021,C&M-PMS Out of Hours Opt Outs,PRC DELEGATED CO-COMMISSIONING,JAUNTY SPRINGS HEALTH CENTRE,35594600,12.67,APMOOH,S12 3DZ
Department of Health,NHS Sheffield CCG,28/02/2021,C&M-PMS PCN DES Clinical Director,PRC DELEGATED CO-COMMISSIONING,JAUNTY SPRINGS HEALTH CENTRE,35594600,"4,190.81",CLINDP,S12 3DZ
Department of Health,NHS Sheffield CCG,28/02/2021,C&M-PMS PCN DES PCN support,LOCAL ENHANCED SERVICES,JAUNTY SPRINGS HEALTH CENTRE,35594600,"8,718.76",PCNSUP,S12 3DZ
Department of Health,NHS Sheffield CCG,28/02/2021,C&M-PMS PCN DES Participation,PRC DELEGATED CO-COMMISSIONING,JAUNTY SPRINGS HEALTH CENTRE,35594600,592.79,PARTIP,S12 3DZ
Department of Health,NHS Sheffield CCG,28/02/2021,C&M-PMS Prem Notional Rent,PRC DELEGATED CO-COMMISSIONING,JAUNTY SPRINGS HEALTH CENTRE,35594600,"3,208.33",NRENT,S12 3DZ
Department of Health,NHS Sheffield CCG,28/02/2021,C&M-PMS Prem Water Rates,PRC DELEGATED CO-COMMISSIONING,JAUNTY SPRINGS HEALTH CENTRE,35594600,72.29,RAMWP,S12 3DZ
Department of Health,NHS Sheffield CCG,28/02/2021,C&M-PMS QOF Aspiration,PRC DELEGATED CO-COMMISSIONING,JAUNTY SPRINGS HEALTH CENTRE,35594600,"3,693.16",QUASPP,S12 3DZ
Department of Health,NHS Sheffield CCG,28/02/2021,Cont Care-Physical Disab (<65),CHC ADULT FULLY FUNDED,LAURELS & LIMES CARE HOME (THE),35637118,"27,466.00",CHC SCHEDULE FEBRUARY 2021 - The Laurels & The Limes Care Home,S10 5DN
Department of Health,NHS Sheffield CCG,28/02/2021,Hcare Srv Rec NHS Trust-Contract Baseline,ACUTE COMMISSIONING,LEEDS TEACHING HOSPITALS NHS TRUST,35629760,"47,860.51",,LS9 7TF
Department of Health,NHS Sheffield CCG,28/02/2021,Cont Care-Physical Disab (<65),CHC ADULT FULLY FUNDED,LONGLEY HEALTH CARE LTD,35637120,"96,902.40",CHC SCHEDULE FEBRUARY 2021 - Longley Park View Nursing Home (Exemplar HC),S5 7JZ
Department of Health,NHS Sheffield CCG,28/02/2021,C&M-PMS Contract Value,PRC DELEGATED CO-COMMISSIONING,MANCHESTER ROAD SURGERY SHEFFIELD,35594604,"33,995.85",BABALP,S10 5PN
Department of Health,NHS Sheffield CCG,28/02/2021,C&M-PMS DES Minor Surgery,PRC DELEGATED CO-COMMISSIONING,MANCHESTER ROAD SURGERY SHEFFIELD,35594604,680.00,DEMSUP,S10 5PN
Department of Health,NHS Sheffield CCG,28/02/2021,C&M-PMS Out of Hours Opt Outs,PRC DELEGATED CO-COMMISSIONING,MANCHESTER ROAD SURGERY SHEFFIELD,35594604,4.42,APMOOH,S10 5PN
Department of Health,NHS Sheffield CCG,28/02/2021,C&M-PMS PCN DES Participation,PRC DELEGATED CO-COMMISSIONING,MANCHESTER ROAD SURGERY SHEFFIELD,35594604,"1,263.76",PARTIP,S10 5PN
Department of Health,NHS Sheffield CCG,28/02/2021,C&M-PMS Prem Cost Rent,PRC DELEGATED CO-COMMISSIONING,MANCHESTER ROAD SURGERY SHEFFIELD,35594604,"3,091.46",COST,S10 5PN
Department of Health,NHS Sheffield CCG,28/02/2021,C&M-PMS Prem Notional Rent,PRC DELEGATED CO-COMMISSIONING,MANCHESTER ROAD SURGERY SHEFFIELD,35594604,442.92,NRENT,S10 5PN
Department of Health,NHS Sheffield CCG,28/02/2021,C&M-PMS QOF Aspiration,PRC DELEGATED CO-COMMISSIONING,MANCHESTER ROAD SURGERY SHEFFIELD,35594604,"3,837.07",QUASPP,S10 5PN
Department of Health,NHS Sheffield CCG,28/02/2021,C&M-PMS Contract Value,PRC DELEGATED CO-COMMISSIONING,MANOR & PARK GROUP PRACTICE,35600302,"73,769.32",BABALP,S2 5QQ
Department of Health,NHS Sheffield CCG,28/02/2021,C&M-PMS Out of Hours Opt Outs,PRC DELEGATED CO-COMMISSIONING,MANOR & PARK GROUP PRACTICE,35600302,168.67,APMOOH,S2 5QQ
Department of Health,NHS Sheffield CCG,28/02/2021,C&M-PMS PCN DES Participation,PRC DELEGATED CO-COMMISSIONING,MANOR & PARK GROUP PRACTICE,35600302,"2,777.35",PARTIP,S2 5QQ
Department of Health,NHS Sheffield CCG,28/02/2021,C&M-PMS Prem Notional Rent,PRC DELEGATED CO-COMMISSIONING,MANOR & PARK GROUP PRACTICE,35600302,"10,175.00",NRENT,S2 5QQ
Department of Health,NHS Sheffield CCG,28/02/2021,C&M-PMS QOF Aspiration,PRC DELEGATED CO-COMMISSIONING,MANOR & PARK GROUP PRACTICE,35600302,"6,093.98",QUASPP,S2 5QQ
Department of Health,NHS Sheffield CCG,28/02/2021,C&M-GMS Cost of Drugs -Prescribing,LOCAL ENHANCED SERVICES,MATHEWS PRACTICE,35767525,70.27,DRGP,S2 4UJ
Department of Health,NHS Sheffield CCG,28/02/2021,C&M-GMS DES Minor Surgery,PRC DELEGATED CO-COMMISSIONING,MATHEWS PRACTICE,35767525,600.00,DEMSUG,S2 4UJ
Department of Health,NHS Sheffield CCG,28/02/2021,C&M-GMS Global Sum,PRC DELEGATED CO-COMMISSIONING,MATHEWS PRACTICE,35767525,"58,054.77",GSUMG,S2 4UJ
Department of Health,NHS Sheffield CCG,28/02/2021,C&M-GMS PCN DES Participation,PRC DELEGATED CO-COMMISSIONING,MATHEWS PRACTICE,35767525,"1,189.39",PARTIG,S2 4UJ
Department of Health,NHS Sheffield CCG,28/02/2021,C&M-GMS Prof Fees Prescribing,PRC DELEGATED CO-COMMISSIONING,MATHEWS PRACTICE,35767525,64.06,DRGPPF,S2 4UJ
Department of Health,NHS Sheffield CCG,28/02/2021,C&M-GMS QOF Aspiration,PRC DELEGATED CO-COMMISSIONING,MATHEWS PRACTICE,35767525,"7,173.28",QUASPG,S2 4UJ
Department of Health,NHS Sheffield CCG,28/02/2021,C&M-PMS Contract Value,PRC DELEGATED CO-COMMISSIONING,MEADOWHEAD GROUP PRACTICE,35594601,"-56,365.17",BABALP,S8 7RL
Department of Health,NHS Sheffield CCG,28/02/2021,C&M-PMS Funding Differential Review,PRC DELEGATED CO-COMMISSIONING,MEADOWHEAD GROUP PRACTICE,35594601,"-1,641.85",ZFUNFP,S8 7RL
Department of Health,NHS Sheffield CCG,28/02/2021,C&M-PMS GP Statutory Levy,PRC DELEGATED CO-COMMISSIONING,MEADOWHEAD GROUP PRACTICE,35594601,-595.70,STATL,S8 7RL
Department of Health,NHS Sheffield CCG,28/02/2021,C&M-PMS Out of Hours Opt Outs,PRC DELEGATED CO-COMMISSIONING,MEADOWHEAD GROUP PRACTICE,35594601,"-9,870.59",APMOOH,S8 7RL
Department of Health,NHS Sheffield CCG,28/02/2021,C&M-PMS PCN DES Participation,PRC DELEGATED CO-COMMISSIONING,MEADOWHEAD GROUP PRACTICE,35594601,"-2,434.20",PARTIP,S8 7RL
Department of Health,NHS Sheffield CCG,28/02/2021,C&M-PMS Prem Cost Rent,PRC DELEGATED CO-COMMISSIONING,MEADOWHEAD GROUP PRACTICE,35594601,"-3,647.42",COST,S8 7RL
Department of Health,NHS Sheffield CCG,28/02/2021,C&M-PMS Prem Notional Rent,PRC DELEGATED CO-COMMISSIONING,MEADOWHEAD GROUP PRACTICE,35594601,"-3,358.33",NRENT,S8 7RL
Department of Health,NHS Sheffield CCG,28/02/2021,C&M-PMS Contract Value,PRC DELEGATED CO-COMMISSIONING,MEADOWHEAD GROUP PRACTICE,35594602,"207,178.58",BABALP,S8 7RL
Department of Health,NHS Sheffield CCG,28/02/2021,C&M-PMS DES Learn Dsblty Hlth Chk,PRC DELEGATED CO-COMMISSIONING,MEADOWHEAD GROUP PRACTICE,35594602,840.00,LEARNP,S8 7RL
Department of Health,NHS Sheffield CCG,28/02/2021,C&M-PMS DES Minor Surgery,PRC DELEGATED CO-COMMISSIONING,MEADOWHEAD GROUP PRACTICE,35594602,"1,380.00",DEMSUP,S8 7RL
Department of Health,NHS Sheffield CCG,28/02/2021,C&M-PMS Funding Differential Review,PRC DELEGATED CO-COMMISSIONING,MEADOWHEAD GROUP PRACTICE,35594602,"1,641.85",ZFUNFP,S8 7RL
Department of Health,NHS Sheffield CCG,28/02/2021,C&M-PMS Out of Hours Opt Outs,PRC DELEGATED CO-COMMISSIONING,MEADOWHEAD GROUP PRACTICE,35594602,"2,689.39",APMOOH,S8 7RL
Department of Health,NHS Sheffield CCG,28/02/2021,C&M-PMS PCN DES Participation,PRC DELEGATED CO-COMMISSIONING,MEADOWHEAD GROUP PRACTICE,35594602,"3,821.10",PARTIP,S8 7RL
Department of Health,NHS Sheffield CCG,28/02/2021,C&M-PMS PCO Locum Adop/Pat/Mat,PRC DELEGATED CO-COMMISSIONING,MEADOWHEAD GROUP PRACTICE,35594602,"14,766.55",SICKC,S8 7RL
Department of Health,NHS Sheffield CCG,28/02/2021,C&M-PMS Prem Cost Rent,PRC DELEGATED CO-COMMISSIONING,MEADOWHEAD GROUP PRACTICE,35594602,"3,647.42",COST,S8 7RL
Department of Health,NHS Sheffield CCG,28/02/2021,C&M-PMS Prem Healthcentre Rent,PRC DELEGATED CO-COMMISSIONING,MEADOWHEAD GROUP PRACTICE,35594602,"41,665.03",HEALTH,S8 7RL
Department of Health,NHS Sheffield CCG,28/02/2021,C&M-PMS Prem Notional Rent,PRC DELEGATED CO-COMMISSIONING,MEADOWHEAD GROUP PRACTICE,35594602,"8,905.00",NRENT,S8 7RL
Department of Health,NHS Sheffield CCG,28/02/2021,C&M-PMS QOF Aspiration,PRC DELEGATED CO-COMMISSIONING,MEADOWHEAD GROUP PRACTICE,35594602,"8,381.02",QUASPP,S8 7RL
Department of Health,NHS Sheffield CCG,28/02/2021,C&M-GMS Cost of Drugs -Prescribing,LOCAL ENHANCED SERVICES,MEDICAL CENTRE CRYSTAL PEAKS,35767521,"1,488.32",DRGP,S20 7HZ
Department of Health,NHS Sheffield CCG,28/02/2021,C&M-GMS DES Learn Dsblty Hlth Chk,PRC DELEGATED CO-COMMISSIONING,MEDICAL CENTRE CRYSTAL PEAKS,35767521,"2,100.00",LEARNG,S20 7HZ
Department of Health,NHS Sheffield CCG,28/02/2021,C&M-GMS DES Minor Surgery,PRC DELEGATED CO-COMMISSIONING,MEDICAL CENTRE CRYSTAL PEAKS,35767521,"4,315.00",DEMSUG,S20 7HZ
Department of Health,NHS Sheffield CCG,28/02/2021,C&M-GMS Global Sum,PRC DELEGATED CO-COMMISSIONING,MEDICAL CENTRE CRYSTAL PEAKS,35767521,"49,449.40",GSUMG,S20 7HZ
Department of Health,NHS Sheffield CCG,28/02/2021,C&M-GMS PCN DES Participation,PRC DELEGATED CO-COMMISSIONING,MEDICAL CENTRE CRYSTAL PEAKS,35767521,"1,948.24",PARTIG,S20 7HZ
Department of Health,NHS Sheffield CCG,28/02/2021,C&M-GMS Prem Notional Rent,PRC DELEGATED CO-COMMISSIONING,MEDICAL CENTRE CRYSTAL PEAKS,35767521,270.00,NRENT,S20 7HZ
Department of Health,NHS Sheffield CCG,28/02/2021,C&M-GMS Prof Fees Prescribing,PRC DELEGATED CO-COMMISSIONING,MEDICAL CENTRE CRYSTAL PEAKS,35767521,461.74,DRGPPF,S20 7HZ
Department of Health,NHS Sheffield CCG,28/02/2021,C&M-GMS QOF Aspiration,PRC DELEGATED CO-COMMISSIONING,MEDICAL CENTRE CRYSTAL PEAKS,35767521,"6,365.03",QUASPG,S20 7HZ
Department of Health,NHS Sheffield CCG,28/02/2021,C&M-GMS Cost of Drugs -Prescribing,LOCAL ENHANCED SERVICES,MILL ROAD SURGERY SHEFFIELD,35767528,"1,645.17",DRGP,S35 9XQ
Department of Health,NHS Sheffield CCG,28/02/2021,C&M-GMS DES Learn Dsblty Hlth Chk,PRC DELEGATED CO-COMMISSIONING,MILL ROAD SURGERY SHEFFIELD,35767528,140.00,LEARNG,S35 9XQ
Department of Health,NHS Sheffield CCG,28/02/2021,C&M-GMS DES Minor Surgery,PRC DELEGATED CO-COMMISSIONING,MILL ROAD SURGERY SHEFFIELD,35767528,360.00,DEMSUG,S35 9XQ
Department of Health,NHS Sheffield CCG,28/02/2021,C&M-GMS Global Sum,PRC DELEGATED CO-COMMISSIONING,MILL ROAD SURGERY SHEFFIELD,35767528,"42,373.03",GSUMG,S35 9XQ
Department of Health,NHS Sheffield CCG,28/02/2021,C&M-GMS PCN DES Participation,PRC DELEGATED CO-COMMISSIONING,MILL ROAD SURGERY SHEFFIELD,35767528,"1,669.50",PARTIG,S35 9XQ
Department of Health,NHS Sheffield CCG,28/02/2021,C&M-GMS Prem Notional Rent,PRC DELEGATED CO-COMMISSIONING,MILL ROAD SURGERY SHEFFIELD,35767528,"4,593.33",NRENT,S35 9XQ
Department of Health,NHS Sheffield CCG,28/02/2021,C&M-GMS Prof Fees Prescribing,PRC DELEGATED CO-COMMISSIONING,MILL ROAD SURGERY SHEFFIELD,35767528,269.57,DRGPPF,S35 9XQ
Department of Health,NHS Sheffield CCG,28/02/2021,C&M-GMS QOF Aspiration,PRC DELEGATED CO-COMMISSIONING,MILL ROAD SURGERY SHEFFIELD,35767528,"5,109.19",QUASPG,S35 9XQ
Department of Health,NHS Sheffield CCG,28/02/2021,C&M-PMS Contract Value,PRC DELEGATED CO-COMMISSIONING,MOSBOROUGH HEALTH CENTRE,35594606,"51,597.24",BABALP,S20 5BQ
Department of Health,NHS Sheffield CCG,28/02/2021,C&M-PMS DES Learn Dsblty Hlth Chk,PRC DELEGATED CO-COMMISSIONING,MOSBOROUGH HEALTH CENTRE,35594606,"2,100.00",LEARNP,S20 5BQ
Department of Health,NHS Sheffield CCG,28/02/2021,C&M-PMS DES Minor Surgery,PRC DELEGATED CO-COMMISSIONING,MOSBOROUGH HEALTH CENTRE,35594606,"1,120.00",DEMSUP,S20 5BQ
Department of Health,NHS Sheffield CCG,28/02/2021,C&M-PMS Out of Hours Opt Outs,PRC DELEGATED CO-COMMISSIONING,MOSBOROUGH HEALTH CENTRE,35594606,1.40,APMOOH,S20 5BQ
Department of Health,NHS Sheffield CCG,28/02/2021,C&M-PMS PCN DES Participation,PRC DELEGATED CO-COMMISSIONING,MOSBOROUGH HEALTH CENTRE,35594606,"1,911.97",PARTIP,S20 5BQ
Department of Health,NHS Sheffield CCG,28/02/2021,C&M-PMS Prem Notional Rent,PRC DELEGATED CO-COMMISSIONING,MOSBOROUGH HEALTH CENTRE,35594606,"12,191.67",NRENT,S20 5BQ
Department of Health,NHS Sheffield CCG,28/02/2021,C&M-PMS Prem Water Rates,PRC DELEGATED CO-COMMISSIONING,MOSBOROUGH HEALTH CENTRE,35594606,94.26,RAMWP,S20 5BQ
Department of Health,NHS Sheffield CCG,28/02/2021,C&M-PMS QOF Aspiration,PRC DELEGATED CO-COMMISSIONING,MOSBOROUGH HEALTH CENTRE,35594606,"5,629.90",QUASPP,S20 5BQ
Department of Health,NHS Sheffield CCG,28/02/2021,C&M-PMS Contract Value,PRC DELEGATED CO-COMMISSIONING,NETHERGREEN SURGERY,35594608,"65,069.44",BABALP,S11 7EJ
Department of Health,NHS Sheffield CCG,28/02/2021,C&M-PMS DES Minor Surgery,PRC DELEGATED CO-COMMISSIONING,NETHERGREEN SURGERY,35594608,580.00,DEMSUP,S11 7EJ
Department of Health,NHS Sheffield CCG,28/02/2021,C&M-PMS Funding Differential Review,PRC DELEGATED CO-COMMISSIONING,NETHERGREEN SURGERY,35594608,"1,369.87",ZFUNFP,S11 7EJ
Department of Health,NHS Sheffield CCG,28/02/2021,C&M-PMS Out of Hours Opt Outs,PRC DELEGATED CO-COMMISSIONING,NETHERGREEN SURGERY,35594608,30.23,APMOOH,S11 7EJ
Department of Health,NHS Sheffield CCG,28/02/2021,C&M-PMS PCN DES Participation,PRC DELEGATED CO-COMMISSIONING,NETHERGREEN SURGERY,35594608,"2,404.52",PARTIP,S11 7EJ
Department of Health,NHS Sheffield CCG,28/02/2021,C&M-PMS Prem Cost Rent,PRC DELEGATED CO-COMMISSIONING,NETHERGREEN SURGERY,35594608,"5,057.33",COST,S11 7EJ
Department of Health,NHS Sheffield CCG,28/02/2021,C&M-PMS QOF Aspiration,PRC DELEGATED CO-COMMISSIONING,NETHERGREEN SURGERY,35594608,"5,887.42",QUASPP,S11 7EJ
Department of Health,NHS Sheffield CCG,28/02/2021,FM Computer Contracts,PRIMARY CARE IT,NHS BASSETLAW CCG,35731406,"63,329.93",RECHARGE - CCGS 52161008,WF3 1WE
Department of Health,NHS Sheffield CCG,28/02/2021,Clinical&Medical-Commercial Sector,PATIENT TRANSPORT,NHS DONCASTER CCG,35563328,"47,534.00",RECHARGE - HEALTH AUTHORITIES 52161009,WF3 1WE
Department of Health,NHS Sheffield CCG,28/02/2021,Charges from CSU,BUSINESS INFORMATICS,NHS NORTH OF ENGLAND CSU,35816608,"27,375.92",DSCRO and Data Management ServicesFEB 21 NECS-3037-2180,WF3 1WE
Department of Health,NHS Sheffield CCG,28/02/2021,C&M-GMS Cost of Drugs -Prescribing,LOCAL ENHANCED SERVICES,NORFOLK PARK HEALTH CENTRE,35767533,"1,145.22",DRGP,S2 3TA
Department of Health,NHS Sheffield CCG,28/02/2021,C&M-GMS Global Sum,PRC DELEGATED CO-COMMISSIONING,NORFOLK PARK HEALTH CENTRE,35767533,"42,300.43",GSUMG,S2 3TA
Department of Health,NHS Sheffield CCG,28/02/2021,C&M-GMS PCN DES Participation,PRC DELEGATED CO-COMMISSIONING,NORFOLK PARK HEALTH CENTRE,35767533,"1,603.19",PARTIG,S2 3TA
Department of Health,NHS Sheffield CCG,28/02/2021,C&M-GMS Prem Healthcentre Rent,PRC DELEGATED CO-COMMISSIONING,NORFOLK PARK HEALTH CENTRE,35767533,"25,249.98",HEALTH,S2 3TA
Department of Health,NHS Sheffield CCG,28/02/2021,C&M-GMS Prof Fees Prescribing,PRC DELEGATED CO-COMMISSIONING,NORFOLK PARK HEALTH CENTRE,35767533,234.88,DRGPPF,S2 3TA
Department of Health,NHS Sheffield CCG,28/02/2021,C&M-GMS QOF Aspiration,PRC DELEGATED CO-COMMISSIONING,NORFOLK PARK HEALTH CENTRE,35767533,"3,959.66",QUASPG,S2 3TA
Department of Health,NHS Sheffield CCG,28/02/2021,C&M-GMS Cost of Drugs -Prescribing,LOCAL ENHANCED SERVICES,NORWOOD MEDICAL CENTRE SHEFFIELD,35767536,237.16,DRGP,S5 7HD
Department of Health,NHS Sheffield CCG,28/02/2021,C&M-GMS DES Minor Surgery,PRC DELEGATED CO-COMMISSIONING,NORWOOD MEDICAL CENTRE SHEFFIELD,35767536,"2,050.00",DEMSUG,S5 7HD
Department of Health,NHS Sheffield CCG,28/02/2021,C&M-GMS Global Sum,PRC DELEGATED CO-COMMISSIONING,NORWOOD MEDICAL CENTRE SHEFFIELD,35767536,"67,306.08",GSUMG,S5 7HD
Department of Health,NHS Sheffield CCG,28/02/2021,C&M-GMS PCN DES Participation,PRC DELEGATED CO-COMMISSIONING,NORWOOD MEDICAL CENTRE SHEFFIELD,35767536,"2,690.13",PARTIG,S5 7HD
Department of Health,NHS Sheffield CCG,28/02/2021,C&M-GMS Prem Notional Rent,PRC DELEGATED CO-COMMISSIONING,NORWOOD MEDICAL CENTRE SHEFFIELD,35767536,"5,187.50",NRENT,S5 7HD
Department of Health,NHS Sheffield CCG,28/02/2021,C&M-GMS Prem Water Rates,PRC DELEGATED CO-COMMISSIONING,NORWOOD MEDICAL CENTRE SHEFFIELD,35767536,203.83,RAMW,S5 7HD
Department of Health,NHS Sheffield CCG,28/02/2021,C&M-GMS Prof Fees Prescribing,PRC DELEGATED CO-COMMISSIONING,NORWOOD MEDICAL CENTRE SHEFFIELD,35767536,85.42,DRGPPF,S5 7HD
Department of Health,NHS Sheffield CCG,28/02/2021,C&M-GMS QOF Aspiration,PRC DELEGATED CO-COMMISSIONING,NORWOOD MEDICAL CENTRE SHEFFIELD,35767536,"8,207.51",QUASPG,S5 7HD
Department of Health,NHS Sheffield CCG,28/02/2021,C&M-GMS Cost of Drugs -Dispensing,LOCAL ENHANCED SERVICES,OUGHTIBRIDGE SURGERY,35767539,"-19,276.05",DRGREC,S35 0FW
Department of Health,NHS Sheffield CCG,28/02/2021,C&M-GMS GP Statutory Levy,PRC DELEGATED CO-COMMISSIONING,OUGHTIBRIDGE SURGERY,35767539,-200.87,STATL,S35 0FW
Department of Health,NHS Sheffield CCG,28/02/2021,C&M-GMS PCN DES Participation,PRC DELEGATED CO-COMMISSIONING,OUGHTIBRIDGE SURGERY,35767539,-892.20,PARTIG,S35 0FW
Department of Health,NHS Sheffield CCG,28/02/2021,C&M-GMS PrscChrgsCll&RmttdbyGPCntra,PRC DELEGATED CO-COMMISSIONING,OUGHTIBRIDGE SURGERY,35767539,-640.50,DRGPRX,S35 0FW
Department of Health,NHS Sheffield CCG,28/02/2021,C&M-GMS Cost of Drugs -Dispensing,LOCAL ENHANCED SERVICES,OUGHTIBRIDGE SURGERY,35767540,"32,961.29","DRGD,DRGADV",S35 0FW
Department of Health,NHS Sheffield CCG,28/02/2021,C&M-GMS DES Learn Dsblty Hlth Chk,PRC DELEGATED CO-COMMISSIONING,OUGHTIBRIDGE SURGERY,35767540,140.00,LEARNG,S35 0FW
Department of Health,NHS Sheffield CCG,28/02/2021,C&M-GMS DES Minor Surgery,PRC DELEGATED CO-COMMISSIONING,OUGHTIBRIDGE SURGERY,35767540,280.00,DEMSUG,S35 0FW
Department of Health,NHS Sheffield CCG,28/02/2021,C&M-GMS Global Sum,PRC DELEGATED CO-COMMISSIONING,OUGHTIBRIDGE SURGERY,35767540,"44,780.91",GSUMG,S35 0FW
Department of Health,NHS Sheffield CCG,28/02/2021,C&M-GMS PCN DES Participation,PRC DELEGATED CO-COMMISSIONING,OUGHTIBRIDGE SURGERY,35767540,"1,785.92",PARTIG,S35 0FW
Department of Health,NHS Sheffield CCG,28/02/2021,C&M-GMS Prem Notional Rent,PRC DELEGATED CO-COMMISSIONING,OUGHTIBRIDGE SURGERY,35767540,"3,957.33",NRENT,S35 0FW
Department of Health,NHS Sheffield CCG,28/02/2021,C&M-GMS Prof Fees Dispensing,PRC DELEGATED CO-COMMISSIONING,OUGHTIBRIDGE SURGERY,35767540,"5,957.25",DRGDPF,S35 0FW
Department of Health,NHS Sheffield CCG,28/02/2021,C&M-GMS PrscrptnChrgsColl&RmttdbyGP,LOCAL ENHANCED SERVICES,OUGHTIBRIDGE SURGERY,35767540,640.50,DRGPR,S35 0FW
Department of Health,NHS Sheffield CCG,28/02/2021,C&M-GMS QOF Aspiration,PRC DELEGATED CO-COMMISSIONING,OUGHTIBRIDGE SURGERY,35767540,"4,282.40",QUASPG,S35 0FW
Department of Health,NHS Sheffield CCG,28/02/2021,C&M-PMS Contract Value,PRC DELEGATED CO-COMMISSIONING,OWLTHORPE MEDICAL CENTRE,35594610,"34,250.90",BABALP,S20 6PD
Department of Health,NHS Sheffield CCG,28/02/2021,C&M-PMS Out of Hours Opt Outs,PRC DELEGATED CO-COMMISSIONING,OWLTHORPE MEDICAL CENTRE,35594610,100.77,APMOOH,S20 6PD
Department of Health,NHS Sheffield CCG,28/02/2021,C&M-PMS PCN DES Participation,PRC DELEGATED CO-COMMISSIONING,OWLTHORPE MEDICAL CENTRE,35594610,"1,267.74",PARTIP,S20 6PD
Department of Health,NHS Sheffield CCG,28/02/2021,C&M-PMS Prem Actual Rent,PRC DELEGATED CO-COMMISSIONING,OWLTHORPE MEDICAL CENTRE,35594610,"7,539.58",RENT,S20 6PD
Department of Health,NHS Sheffield CCG,28/02/2021,C&M-PMS QOF Aspiration,PRC DELEGATED CO-COMMISSIONING,OWLTHORPE MEDICAL CENTRE,35594610,"3,728.91",QUASPP,S20 6PD
Department of Health,NHS Sheffield CCG,28/02/2021,C&M-PMS Contract Value,PRC DELEGATED CO-COMMISSIONING,PAGE HALL MEDICAL CENTRE,35594612,"59,145.00",BABALP,S4 8GB
Department of Health,NHS Sheffield CCG,28/02/2021,C&M-PMS DES Learn Dsblty Hlth Chk,PRC DELEGATED CO-COMMISSIONING,PAGE HALL MEDICAL CENTRE,35594612,"2,660.00",LEARNP,S4 8GB
Department of Health,NHS Sheffield CCG,28/02/2021,C&M-PMS DES Minor Surgery,PRC DELEGATED CO-COMMISSIONING,PAGE HALL MEDICAL CENTRE,35594612,160.00,DEMSUP,S4 8GB
Department of Health,NHS Sheffield CCG,28/02/2021,C&M-PMS Funding Differential Review,PRC DELEGATED CO-COMMISSIONING,PAGE HALL MEDICAL CENTRE,35594612,"1,161.37",ZFUNFP,S4 8GB
Department of Health,NHS Sheffield CCG,28/02/2021,C&M-PMS Out of Hours Opt Outs,PRC DELEGATED CO-COMMISSIONING,PAGE HALL MEDICAL CENTRE,35594612,34.63,APMOOH,S4 8GB
Department of Health,NHS Sheffield CCG,28/02/2021,C&M-PMS PCN DES Participation,PRC DELEGATED CO-COMMISSIONING,PAGE HALL MEDICAL CENTRE,35594612,"2,194.23",PARTIP,S4 8GB
Department of Health,NHS Sheffield CCG,28/02/2021,C&M-PMS Prem Notional Rent,PRC DELEGATED CO-COMMISSIONING,PAGE HALL MEDICAL CENTRE,35594612,"4,833.33",NRENT,S4 8GB
Department of Health,NHS Sheffield CCG,28/02/2021,C&M-PMS QOF Aspiration,PRC DELEGATED CO-COMMISSIONING,PAGE HALL MEDICAL CENTRE,35594612,"3,909.14",QUASPP,S4 8GB
Department of Health,NHS Sheffield CCG,28/02/2021,C&M-PMS Contract Value,PRC DELEGATED CO-COMMISSIONING,PORTER BROOK MEDICAL CENTRE,35594613,"-10,622.26",BABALP,S11 8HN
Department of Health,NHS Sheffield CCG,28/02/2021,C&M-PMS Funding Differential Review,PRC DELEGATED CO-COMMISSIONING,PORTER BROOK MEDICAL CENTRE,35594613,"-3,636.27",ZFUNFP,S11 8HN
Department of Health,NHS Sheffield CCG,28/02/2021,C&M-PMS GP Statutory Levy,PRC DELEGATED CO-COMMISSIONING,PORTER BROOK MEDICAL CENTRE,35594613,"-1,009.61",STATL,S11 8HN
Department of Health,NHS Sheffield CCG,28/02/2021,C&M-PMS Out of Hours Opt Outs,PRC DELEGATED CO-COMMISSIONING,PORTER BROOK MEDICAL CENTRE,35594613,"-8,057.86",APMOOH,S11 8HN
Department of Health,NHS Sheffield CCG,28/02/2021,C&M-PMS PCN DES Participation,PRC DELEGATED CO-COMMISSIONING,PORTER BROOK MEDICAL CENTRE,35594613,"-3,182.41",PARTIP,S11 8HN
Department of Health,NHS Sheffield CCG,28/02/2021,C&M-PMS Contract Value,PRC DELEGATED CO-COMMISSIONING,PORTER BROOK MEDICAL CENTRE,35594614,"169,776.61",BABALP,S11 8HN
Department of Health,NHS Sheffield CCG,28/02/2021,C&M-PMS DES Minor Surgery,PRC DELEGATED CO-COMMISSIONING,PORTER BROOK MEDICAL CENTRE,35594614,"5,160.00",DEMSUP,S11 8HN
Department of Health,NHS Sheffield CCG,28/02/2021,C&M-PMS Funding Differential Review,PRC DELEGATED CO-COMMISSIONING,PORTER BROOK MEDICAL CENTRE,35594614,"3,636.27",ZFUNFP,S11 8HN
Department of Health,NHS Sheffield CCG,28/02/2021,C&M-PMS Out of Hours Opt Outs,PRC DELEGATED CO-COMMISSIONING,PORTER BROOK MEDICAL CENTRE,35594614,505.67,APMOOH,S11 8HN
Department of Health,NHS Sheffield CCG,28/02/2021,C&M-PMS PCN DES Participation,PRC DELEGATED CO-COMMISSIONING,PORTER BROOK MEDICAL CENTRE,35594614,"6,370.24",PARTIP,S11 8HN
Department of Health,NHS Sheffield CCG,28/02/2021,C&M-PMS PCO Other,PRC DELEGATED CO-COMMISSIONING,PORTER BROOK MEDICAL CENTRE,35594614,"17,477.00",CQCRP,S11 8HN
Department of Health,NHS Sheffield CCG,28/02/2021,C&M-PMS Prem Actual Rent,PRC DELEGATED CO-COMMISSIONING,PORTER BROOK MEDICAL CENTRE,35594614,"1,666.67",RENT,S11 8HN
Department of Health,NHS Sheffield CCG,28/02/2021,C&M-PMS Prem Notional Rent,PRC DELEGATED CO-COMMISSIONING,PORTER BROOK MEDICAL CENTRE,35594614,"9,666.67",NRENT,S11 8HN
Department of Health,NHS Sheffield CCG,28/02/2021,C&M-PMS QOF Aspiration,PRC DELEGATED CO-COMMISSIONING,PORTER BROOK MEDICAL CENTRE,35594614,"10,115.59",QUASPP,S11 8HN
Department of Health,NHS Sheffield CCG,28/02/2021,Clinical&Medical-Commercial Sector,PATIENT TRANSPORT,PREMIER CARE DIRECT LTD,35528485,"112,480.55",https://nww.einvoice-prod.sbs.nhs.uk:8179/invoicepdf/3b850129-e81e-59c4-b3de-6e9b47f83b86,DN4 5NU
Department of Health,NHS Sheffield CCG,28/02/2021,C&M-GMS C&M-APMS PCN DES Physician Assoc,PRC DELEGATED CO-COMMISSIONING,PRIMARY CARE SHEFFIELD LTD,35505540,"8,539.18",,S9 4EU
Department of Health,NHS Sheffield CCG,28/02/2021,C&M-GMS PCN DES Clin Pharmacist,PRC DELEGATED CO-COMMISSIONING,PRIMARY CARE SHEFFIELD LTD,35505540,"15,898.44",,S9 4EU
Department of Health,NHS Sheffield CCG,28/02/2021,C&M-GMS PCN DES Physiotherapist,PRC DELEGATED CO-COMMISSIONING,PRIMARY CARE SHEFFIELD LTD,35505540,"5,070.61",,S9 4EU
Department of Health,NHS Sheffield CCG,28/02/2021,C&M-GMS PCN DES Soc Prescribing,PRC DELEGATED CO-COMMISSIONING,PRIMARY CARE SHEFFIELD LTD,35505540,"2,333.33",,S9 4EU
Department of Health,NHS Sheffield CCG,28/02/2021,Clinical&Medical-Independent Sector,MENTAL HEALTH SERVICES - OTHER,PRIMARY CARE SHEFFIELD LTD,35543440,"30,583.50",,S9 4EU
Department of Health,NHS Sheffield CCG,28/02/2021,C&M-APMS DES Extended Hours Access,GP FORWARD VIEW,PRIMARY CARE SHEFFIELD LTD,35563343,"302,608.33",,S9 4EU
Department of Health,NHS Sheffield CCG,28/02/2021,C&M-GMS LES Basket of Procedures,LOCAL ENHANCED SERVICES,PRIMARY CARE SHEFFIELD LTD,35563344,"53,558.33",,S9 4EU
Department of Health,NHS Sheffield CCG,28/02/2021,C&M-APMS DES Immediate&1st Response,LOCAL ENHANCED SERVICES,PRIMARY CARE SHEFFIELD LTD,35580490,"38,800.00",,S9 4EU
Department of Health,NHS Sheffield CCG,28/02/2021,C&M-APMS DES Immediate&1st Response,LOCAL ENHANCED SERVICES,PRIMARY CARE SHEFFIELD LTD,35641934,"50,400.00",,S9 4EU
Department of Health,NHS Sheffield CCG,28/02/2021,C&M-GMS C&M-APMS PCN DES Physician Assoc,PRC DELEGATED CO-COMMISSIONING,PRIMARY CARE SHEFFIELD LTD,35775494,"6,165.92",,S9 4EU
Department of Health,NHS Sheffield CCG,28/02/2021,C&M-GMS PCN DES Clin Pharmacist,PRC DELEGATED CO-COMMISSIONING,PRIMARY CARE SHEFFIELD LTD,35775494,"9,584.52",,S9 4EU
Department of Health,NHS Sheffield CCG,28/02/2021,C&M-GMS PCN DES Physiotherapist,PRC DELEGATED CO-COMMISSIONING,PRIMARY CARE SHEFFIELD LTD,35775494,"4,639.17",,S9 4EU
Department of Health,NHS Sheffield CCG,28/02/2021,C&M-GMS PCN DES Soc Prescribing,PRC DELEGATED CO-COMMISSIONING,PRIMARY CARE SHEFFIELD LTD,35775494,"5,672.00",,S9 4EU
Department of Health,NHS Sheffield CCG,28/02/2021,C&M-PCN DES DIETICIANS,PRC DELEGATED CO-COMMISSIONING,PRIMARY CARE SHEFFIELD LTD,35775494,"4,160.08",,S9 4EU
Department of Health,NHS Sheffield CCG,28/02/2021,C&M-PCN DES HEALTH AND WELLBEING COACH,PRC DELEGATED CO-COMMISSIONING,PRIMARY CARE SHEFFIELD LTD,35775494,"1,660.37",,S9 4EU
Department of Health,NHS Sheffield CCG,28/02/2021,C&M-PCN DES PHARMACY TECHNICIANS,PRC DELEGATED CO-COMMISSIONING,PRIMARY CARE SHEFFIELD LTD,35775494,"2,949.08",,S9 4EU
Department of Health,NHS Sheffield CCG,28/02/2021,Cont Care-Physical Disab (<65),CHC ADULT FULLY FUNDED,PRIORY GROUP LTD,35637129,"25,485.67",CHC SCHEDULE FEBRUARY 2021 - Richmond Heights Care Home (The Priory Group),DL2 1TS
Department of Health,NHS Sheffield CCG,28/02/2021,C&M-PMS Contract Value,PRC DELEGATED CO-COMMISSIONING,RICHMOND MEDICAL CENTRE,35594616,"70,073.27",BABALP,S13 8NA
Department of Health,NHS Sheffield CCG,28/02/2021,C&M-PMS DES Learn Dsblty Hlth Chk,PRC DELEGATED CO-COMMISSIONING,RICHMOND MEDICAL CENTRE,35594616,"2,380.00",LEARNP,S13 8NA
Department of Health,NHS Sheffield CCG,28/02/2021,C&M-PMS DES Minor Surgery,PRC DELEGATED CO-COMMISSIONING,RICHMOND MEDICAL CENTRE,35594616,165.00,DEMSUP,S13 8NA
Department of Health,NHS Sheffield CCG,28/02/2021,C&M-PMS PCN DES Participation,PRC DELEGATED CO-COMMISSIONING,RICHMOND MEDICAL CENTRE,35594616,"1,278.48",PARTIP,S13 8NA
Department of Health,NHS Sheffield CCG,28/02/2021,C&M-PMS Prem Notional Rent,PRC DELEGATED CO-COMMISSIONING,RICHMOND MEDICAL CENTRE,35594616,"4,731.00",NRENT,S13 8NA
Department of Health,NHS Sheffield CCG,28/02/2021,C&M-PMS QOF Aspiration,PRC DELEGATED CO-COMMISSIONING,RICHMOND MEDICAL CENTRE,35594616,"7,878.95",QUASPP,S13 8NA
Department of Health,NHS Sheffield CCG,28/02/2021,Cont Care-Funded Nursing Care Allow,FUNDED NURSING CARE,ROSEBERRY CARE CENTRES,35614015,"32,817.63",FNC SCHEDULE FEBRUARY 2021 - Haythorne Place Nursing Home (Roseberry),S5 6AB
Department of Health,NHS Sheffield CCG,28/02/2021,Cont Care-Physical Disab (<65),CHC ADULT FULLY FUNDED,ROSEBERRY CARE CENTRES,35637143,"34,637.37",CHC SCHEDULE FEBRUARY 2021 - Haythorne Place Nursing Home (Roseberry),S5 6AB
Department of Health,NHS Sheffield CCG,28/02/2021,Hcare Srv Rec Fdtn Trust-Contract Baseline,ACUTE COMMISSIONING,ROTHERHAM NHS FOUNDATION TRUST,35629764,"618,988.29",,S60 2TY
Department of Health,NHS Sheffield CCG,28/02/2021,C&M-APMS OOH Opt Outs,PRC DELEGATED CO-COMMISSIONING,RUSTLINGS ROAD MEDICAL CENTRE,35594620,4.29,APMOOA,S11 7AB
Department of Health,NHS Sheffield CCG,28/02/2021,C&M-PMS Contract Value,PRC DELEGATED CO-COMMISSIONING,RUSTLINGS ROAD MEDICAL CENTRE,35594620,"29,270.29",BABALP,S11 7AB
Department of Health,NHS Sheffield CCG,28/02/2021,C&M-PMS DES Learn Dsblty Hlth Chk,PRC DELEGATED CO-COMMISSIONING,RUSTLINGS ROAD MEDICAL CENTRE,35594620,"1,260.00",LEARNP,S11 7AB
Department of Health,NHS Sheffield CCG,28/02/2021,C&M-PMS Funding Differential Review,PRC DELEGATED CO-COMMISSIONING,RUSTLINGS ROAD MEDICAL CENTRE,35594620,565.04,ZFUNFP,S11 7AB
Department of Health,NHS Sheffield CCG,28/02/2021,C&M-PMS Out of Hours Opt Outs,PRC DELEGATED CO-COMMISSIONING,RUSTLINGS ROAD MEDICAL CENTRE,35594620,20.49,APMOOH,S11 7AB
Department of Health,NHS Sheffield CCG,28/02/2021,C&M-PMS PCN DES Participation,PRC DELEGATED CO-COMMISSIONING,RUSTLINGS ROAD MEDICAL CENTRE,35594620,"1,072.99",PARTIP,S11 7AB
Department of Health,NHS Sheffield CCG,28/02/2021,C&M-PMS Prem Notional Rent,PRC DELEGATED CO-COMMISSIONING,RUSTLINGS ROAD MEDICAL CENTRE,35594620,"1,312.50",NRENT,S11 7AB
Department of Health,NHS Sheffield CCG,28/02/2021,C&M-PMS QOF Aspiration,PRC DELEGATED CO-COMMISSIONING,RUSTLINGS ROAD MEDICAL CENTRE,35594620,"2,857.73",QUASPP,S11 7AB
Department of Health,NHS Sheffield CCG,28/02/2021,Cont Care-Physical Disab (<65),CHC ADULT FULLY FUNDED,SCARSDALE GRANGE NURSING HOME,35637133,"33,439.61",CHC SCHEDULE FEBRUARY 2021 - Scarsdale Grange Nursing Home,S8 9EQ
Department of Health,NHS Sheffield CCG,28/02/2021,Cont Care-Physical Disab (<65),CHC ADULT FULLY FUNDED,SEVEN HILLS NURSING HOME,35637134,"52,319.84",CHC SCHEDULE FEBRUARY 2021 - Seven Hills Nursing Home,S11 9AA
Department of Health,NHS Sheffield CCG,28/02/2021,C&M-GMS Cost of Drugs -Prescribing,LOCAL ENHANCED SERVICES,SHARROW LANE MEDICAL CENTRE,35767543,910.01,DRGP,S11 8AN
Department of Health,NHS Sheffield CCG,28/02/2021,C&M-GMS DES Minor Surgery,PRC DELEGATED CO-COMMISSIONING,SHARROW LANE MEDICAL CENTRE,35767543,280.00,DEMSUG,S11 8AN
Department of Health,NHS Sheffield CCG,28/02/2021,C&M-GMS Global Sum,PRC DELEGATED CO-COMMISSIONING,SHARROW LANE MEDICAL CENTRE,35767543,"25,322.98",GSUMG,S11 8AN
Department of Health,NHS Sheffield CCG,28/02/2021,C&M-GMS PCN DES Participation,PRC DELEGATED CO-COMMISSIONING,SHARROW LANE MEDICAL CENTRE,35767543,976.69,PARTIG,S11 8AN
Department of Health,NHS Sheffield CCG,28/02/2021,C&M-GMS PCO Other,PRC DELEGATED CO-COMMISSIONING,SHARROW LANE MEDICAL CENTRE,35767543,274.00,CQCRG,S11 8AN
Department of Health,NHS Sheffield CCG,28/02/2021,C&M-GMS Prem Notional Rent,PRC DELEGATED CO-COMMISSIONING,SHARROW LANE MEDICAL CENTRE,35767543,"2,741.67",NRENT,S11 8AN
Department of Health,NHS Sheffield CCG,28/02/2021,C&M-GMS Prof Fees Prescribing,PRC DELEGATED CO-COMMISSIONING,SHARROW LANE MEDICAL CENTRE,35767543,240.21,DRGPPF,S11 8AN
Department of Health,NHS Sheffield CCG,28/02/2021,C&M-GMS QOF Aspiration,PRC DELEGATED CO-COMMISSIONING,SHARROW LANE MEDICAL CENTRE,35767543,"2,676.86",QUASPG,S11 8AN
Department of Health,NHS Sheffield CCG,28/02/2021,Hcare Srv Rec Fdtn Trust-Contract Baseline,ACUTE CHILDRENS SERVICES,SHEFFIELD CHILDRENS NHS FOUNDATION TRUST,35629769,"6,049,745.62",,S10 2TH
Department of Health,NHS Sheffield CCG,28/02/2021,Clinical&Medical-Othe Public Sector,LEARNING DIFFICULTIES,SHEFFIELD CITY COUNCIL,35528574,"506,500.00",,S1 2HH
Department of Health,NHS Sheffield CCG,28/02/2021,Soc Care-Other Soc Care,COMMISSIONING - NON ACUTE,SHEFFIELD CITY COUNCIL,35528582,"1,000,000.00",,S1 2HH
Department of Health,NHS Sheffield CCG,28/02/2021,Clinical&Medical-Othe Public Sector,COMMUNITY SERVICES,SHEFFIELD CITY COUNCIL,35528778,"150,416.67",,S1 1UJ
Department of Health,NHS Sheffield CCG,28/02/2021,Clinical&Medical-Othe Public Sector,MENTAL HEALTH SERVICES - COLLABORATIVE COMMISSIONING,SHEFFIELD CITY COUNCIL,35528778,"83,669.09",,S1 1UJ
Department of Health,NHS Sheffield CCG,28/02/2021,Clinical&Medical-Othe Public Sector,REABLEMENT,SHEFFIELD CITY COUNCIL,35528778,"21,808.67",,S1 1UJ
Department of Health,NHS Sheffield CCG,28/02/2021,Clinical&Medical-Othe Public Sector,SAFEGUARDING,SHEFFIELD CITY COUNCIL,35528778,"16,596.33",,S1 1UJ
Department of Health,NHS Sheffield CCG,28/02/2021,Cont Care-Physical Disab (65+),CHC ADULT FULLY FUNDED,SHEFFIELD CITY COUNCIL,35528778,"59,435.47",,S1 1UJ
Department of Health,NHS Sheffield CCG,28/02/2021,Soc Care-Joint H&C Teams/Working,INTERMEDIATE CARE,SHEFFIELD CITY COUNCIL,35528778,"151,447.58",,S1 1UJ
Department of Health,NHS Sheffield CCG,28/02/2021,Soc Care-Other Soc Care,COMMISSIONING - NON ACUTE,SHEFFIELD CITY COUNCIL,35528778,"1,635,250.00",,S1 1UJ
Department of Health,NHS Sheffield CCG,28/02/2021,Soc Care-Support Prim Care,COMMUNITY SERVICES,SHEFFIELD CITY COUNCIL,35528778,"58,000.00",,S1 1UJ
Department of Health,NHS Sheffield CCG,28/02/2021,Clinical&Medical-Othe Public Sector,COMMUNITY SERVICES,SHEFFIELD CITY COUNCIL,35528802,"150,416.67",,S1 1UJ
Department of Health,NHS Sheffield CCG,28/02/2021,Clinical&Medical-Othe Public Sector,MENTAL HEALTH SERVICES - COLLABORATIVE COMMISSIONING,SHEFFIELD CITY COUNCIL,35528802,"83,669.09",,S1 1UJ
Department of Health,NHS Sheffield CCG,28/02/2021,Clinical&Medical-Othe Public Sector,REABLEMENT,SHEFFIELD CITY COUNCIL,35528802,"21,808.67",,S1 1UJ
Department of Health,NHS Sheffield CCG,28/02/2021,Clinical&Medical-Othe Public Sector,SAFEGUARDING,SHEFFIELD CITY COUNCIL,35528802,"16,596.33",,S1 1UJ
Department of Health,NHS Sheffield CCG,28/02/2021,Cont Care-Physical Disab (65+),CHC ADULT FULLY FUNDED,SHEFFIELD CITY COUNCIL,35528802,"59,435.47",,S1 1UJ
Department of Health,NHS Sheffield CCG,28/02/2021,Soc Care-Joint H&C Teams/Working,INTERMEDIATE CARE,SHEFFIELD CITY COUNCIL,35528802,"151,447.58",,S1 1UJ
Department of Health,NHS Sheffield CCG,28/02/2021,Soc Care-Other Soc Care,COMMISSIONING - NON ACUTE,SHEFFIELD CITY COUNCIL,35528802,"1,635,250.00",,S1 1UJ
Department of Health,NHS Sheffield CCG,28/02/2021,Soc Care-Support Prim Care,COMMUNITY SERVICES,SHEFFIELD CITY COUNCIL,35528802,"58,000.00",,S1 1UJ
Department of Health,NHS Sheffield CCG,28/02/2021,Health Promotion,COMMISSIONING,SHEFFIELD CITY COUNCIL,35616809,"56,251.00",,S1 2HH
Department of Health,NHS Sheffield CCG,28/02/2021,Services From Local Authorities,MENTAL HEALTH SERVICES - COLLABORATIVE COMMISSIONING,SHEFFIELD CITY COUNCIL,35775539,"29,001.76",,S1 2HH
Department of Health,NHS Sheffield CCG,28/02/2021,Cont Care-Physical Disab (65+),CHC ADULT FULLY FUNDED,SHEFFIELD CITY COUNCIL,35784752,"815,721.47",RMT SCHEDULE February 2021,S1 1UJ
Department of Health,NHS Sheffield CCG,28/02/2021,Cont Care- Children,CHC CHILDREN,SHEFFIELD CITY COUNCIL,35784754,"90,524.18",CHILDRENS SCHEDULE February 2021,S1 1UJ
Department of Health,NHS Sheffield CCG,28/02/2021,Clinical&Medical-Voluntary Sector,CHILD AND ADOLESCENT MENTAL HEALTH,SHEFFIELD FUTURES,35731403,"25,600.00",,S1 4GE
Department of Health,NHS Sheffield CCG,28/02/2021,Clinical&Medical-Voluntary Sector,CHILD AND ADOLESCENT MENTAL HEALTH,SHEFFIELD FUTURES,35775514,"25,600.00",,S1 4GE
Department of Health,NHS Sheffield CCG,28/02/2021,Seconded-Basic Sal-Staff fm oth org,BEREAVEMENT SERVICE,SHEFFIELD HEALTH & SOCIAL CARE NHS FOUNDATION TRUST,35616724,"33,935.17",,S10 3TH
Department of Health,NHS Sheffield CCG,28/02/2021,Seconded-Employer's NHI Costs,BEREAVEMENT SERVICE,SHEFFIELD HEALTH & SOCIAL CARE NHS FOUNDATION TRUST,35616724,"3,693.58",,S10 3TH
Department of Health,NHS Sheffield CCG,28/02/2021,Hcare Srv Rec Fdtn Trust-Contract Baseline,MENTAL HEALTH CONTRACTS,SHEFFIELD HEALTH & SOCIAL CARE NHS FOUNDATION TRUST,35629762,"9,015,348.63",,S10 3TH
Department of Health,NHS Sheffield CCG,28/02/2021,Hcare Srv Rec Fdtn Trust-Non Contract,MENTAL HEALTH CONTRACTS,SHEFFIELD HEALTH & SOCIAL CARE NHS FOUNDATION TRUST,35681804,"159,000.00",,S10 3TH
Department of Health,NHS Sheffield CCG,28/02/2021,Other Gen Supplies & Srv,CLINICAL LEADS,SHEFFIELD TEACHING HOSPITALS NHS FOUNDATION TRUST,35528461,"60,000.00",,S5 7AU
Department of Health,NHS Sheffield CCG,28/02/2021,Other Gen Supplies & Srv,CLINICAL LEADS,SHEFFIELD TEACHING HOSPITALS NHS FOUNDATION TRUST,35580538,"-29,200.00",,S5 7AU
Department of Health,NHS Sheffield CCG,28/02/2021,Other Gen Supplies & Srv,CLINICAL LEADS,SHEFFIELD TEACHING HOSPITALS NHS FOUNDATION TRUST,35580581,"-35,300.00",,S5 7AU
Department of Health,NHS Sheffield CCG,28/02/2021,Hcare Srv Rec Fdtn Trust-Contract Baseline,ACUTE COMMISSIONING,SHEFFIELD TEACHING HOSPITALS NHS FOUNDATION TRUST,35629763,"44,712,369.39",,S5 7AU
Department of Health,NHS Sheffield CCG,28/02/2021,Hcare Srv Rec Fdtn Trust-Non Contract,ACUTE COMMISSIONING,SHEFFIELD TEACHING HOSPITALS NHS FOUNDATION TRUST,35682033,"147,382.00",,S5 7AU
Department of Health,NHS Sheffield CCG,28/02/2021,Other Gen Supplies & Srv,CLINICAL LEADS,SHEFFIELD TEACHING HOSPITALS NHS FOUNDATION TRUST,35682037,"129,000.00",,S5 7AU
Department of Health,NHS Sheffield CCG,28/02/2021,Other Gen Supplies & Srv,CLINICAL LEADS,SHEFFIELD TEACHING HOSPITALS NHS FOUNDATION TRUST,35804007,"143,364.00",,S5 7AU
Department of Health,NHS Sheffield CCG,28/02/2021,Seconded-Basic Sal-Staff fm oth org,BEREAVEMENT SERVICE,SHEFFIELD TEACHING HOSPITALS NHS FOUNDATION TRUST,35816553,"33,540.07",,S5 7AU
Department of Health,NHS Sheffield CCG,28/02/2021,Seconded-Employer's NHI Costs,BEREAVEMENT SERVICE,SHEFFIELD TEACHING HOSPITALS NHS FOUNDATION TRUST,35816553,"3,026.17",,S5 7AU
Department of Health,NHS Sheffield CCG,28/02/2021,Seconded-Basic Sal-Staff fm oth org,CLINICAL LEADS,SHEFFIELD TEACHING HOSPITALS NHS FOUNDATION TRUST,35822563,"31,122.00",,S5 7AU
Department of Health,NHS Sheffield CCG,28/02/2021,Seconded-Employer's NHI Costs,CLINICAL LEADS,SHEFFIELD TEACHING HOSPITALS NHS FOUNDATION TRUST,35822563,"3,688.00",,S5 7AU
Department of Health,NHS Sheffield CCG,28/02/2021,C&M-GMS Cost of Drugs -Prescribing,LOCAL ENHANCED SERVICES,SHIREGREEN MEDICAL CENTRE,35767550,"1,949.50",DRGP,S5 0RG
Department of Health,NHS Sheffield CCG,28/02/2021,C&M-GMS DES Minor Surgery,PRC DELEGATED CO-COMMISSIONING,SHIREGREEN MEDICAL CENTRE,35767550,80.00,DEMSUG,S5 0RG
Department of Health,NHS Sheffield CCG,28/02/2021,C&M-GMS Global Sum,PRC DELEGATED CO-COMMISSIONING,SHIREGREEN MEDICAL CENTRE,35767550,"58,792.95",GSUMG,S5 0RG
Department of Health,NHS Sheffield CCG,28/02/2021,C&M-GMS PCN DES Participation,PRC DELEGATED CO-COMMISSIONING,SHIREGREEN MEDICAL CENTRE,35767550,"2,389.19",PARTIG,S5 0RG
Department of Health,NHS Sheffield CCG,28/02/2021,C&M-GMS Prem Cost Rent,PRC DELEGATED CO-COMMISSIONING,SHIREGREEN MEDICAL CENTRE,35767550,"1,792.33",COST,S5 0RG
Department of Health,NHS Sheffield CCG,28/02/2021,C&M-GMS Prem Notional Rent,PRC DELEGATED CO-COMMISSIONING,SHIREGREEN MEDICAL CENTRE,35767550,"5,375.00",NRENT,S5 0RG
Department of Health,NHS Sheffield CCG,28/02/2021,C&M-GMS Prof Fees Prescribing,PRC DELEGATED CO-COMMISSIONING,SHIREGREEN MEDICAL CENTRE,35767550,451.06,DRGPPF,S5 0RG
Department of Health,NHS Sheffield CCG,28/02/2021,C&M-GMS QOF Aspiration,PRC DELEGATED CO-COMMISSIONING,SHIREGREEN MEDICAL CENTRE,35767550,"6,876.28",QUASPG,S5 0RG
Department of Health,NHS Sheffield CCG,28/02/2021,C&M-PMS Contract Value,PRC DELEGATED CO-COMMISSIONING,SLOAN MEDICAL CENTRE,35594621,-227.73,BABALP,S8 0YH
Department of Health,NHS Sheffield CCG,28/02/2021,C&M-PMS GP Statutory Levy,PRC DELEGATED CO-COMMISSIONING,SLOAN MEDICAL CENTRE,35594621,-472.26,STATL,S8 0YH
Department of Health,NHS Sheffield CCG,28/02/2021,C&M-PMS Out of Hours Opt Outs,PRC DELEGATED CO-COMMISSIONING,SLOAN MEDICAL CENTRE,35594621,"-4,680.47",APMOOH,S8 0YH
Department of Health,NHS Sheffield CCG,28/02/2021,C&M-PMS PCN DES Participation,PRC DELEGATED CO-COMMISSIONING,SLOAN MEDICAL CENTRE,35594621,"-1,829.77",PARTIP,S8 0YH
Department of Health,NHS Sheffield CCG,28/02/2021,C&M-PMS Prem Actual Rent,PRC DELEGATED CO-COMMISSIONING,SLOAN MEDICAL CENTRE,35594621,"-15,970.83",RENT,S8 0YH
Department of Health,NHS Sheffield CCG,28/02/2021,C&M-PMS Contract Value,PRC DELEGATED CO-COMMISSIONING,SLOAN MEDICAL CENTRE,35594622,"98,227.52",BABALP,S8 0YH
Department of Health,NHS Sheffield CCG,28/02/2021,C&M-PMS DES Learn Dsblty Hlth Chk,PRC DELEGATED CO-COMMISSIONING,SLOAN MEDICAL CENTRE,35594622,"6,020.00",LEARNP,S8 0YH
Department of Health,NHS Sheffield CCG,28/02/2021,C&M-PMS DES Minor Surgery,PRC DELEGATED CO-COMMISSIONING,SLOAN MEDICAL CENTRE,35594622,"1,890.00",DEMSUP,S8 0YH
Department of Health,NHS Sheffield CCG,28/02/2021,C&M-PMS Out of Hours Opt Outs,PRC DELEGATED CO-COMMISSIONING,SLOAN MEDICAL CENTRE,35594622,10.87,APMOOH,S8 0YH
Department of Health,NHS Sheffield CCG,28/02/2021,C&M-PMS PCN DES Participation,PRC DELEGATED CO-COMMISSIONING,SLOAN MEDICAL CENTRE,35594622,"3,662.66",PARTIP,S8 0YH
Department of Health,NHS Sheffield CCG,28/02/2021,C&M-PMS PCO Locum Adop/Pat/Mat,PRC DELEGATED CO-COMMISSIONING,SLOAN MEDICAL CENTRE,35594622,"15,811.17",SICKC,S8 0YH
Department of Health,NHS Sheffield CCG,28/02/2021,C&M-PMS PCO Locum Sickness,PRC DELEGATED CO-COMMISSIONING,SLOAN MEDICAL CENTRE,35594622,"31,345.45",SICKS,S8 0YH
Department of Health,NHS Sheffield CCG,28/02/2021,C&M-PMS Prem Actual Rent,PRC DELEGATED CO-COMMISSIONING,SLOAN MEDICAL CENTRE,35594622,"15,970.83",RENT,S8 0YH
Department of Health,NHS Sheffield CCG,28/02/2021,C&M-PMS Prem Notional Rent,PRC DELEGATED CO-COMMISSIONING,SLOAN MEDICAL CENTRE,35594622,747.50,NRENT,S8 0YH
Department of Health,NHS Sheffield CCG,28/02/2021,C&M-PMS QOF Aspiration,PRC DELEGATED CO-COMMISSIONING,SLOAN MEDICAL CENTRE,35594622,"9,977.55",QUASPP,S8 0YH
Department of Health,NHS Sheffield CCG,28/02/2021,Professional Fees,BEREAVEMENT SERVICE,SME HCI LTD,35655289,"26,400.00",https://nww.einvoice-prod.sbs.nhs.uk:8179/invoicepdf/9e2ac913-ed58-5c6f-9f86-91644be9fced,GU9 7UD
Department of Health,NHS Sheffield CCG,28/02/2021,Professional Fees,BEREAVEMENT SERVICE,SME HCI LTD,35655300,"26,400.00",https://nww.einvoice-prod.sbs.nhs.uk:8179/invoicepdf/3d4f8dd2-53ab-5d22-b39e-5e9212c0a52c,GU9 7UD
Department of Health,NHS Sheffield CCG,28/02/2021,C&M-PMS Contract Value,PRC DELEGATED CO-COMMISSIONING,SOTHALL MEDICAL CENTRE,35594624,"72,846.08",BABALP,S20 1HQ
Department of Health,NHS Sheffield CCG,28/02/2021,C&M-PMS DES Learn Dsblty Hlth Chk,PRC DELEGATED CO-COMMISSIONING,SOTHALL MEDICAL CENTRE,35594624,"1,120.00",LEARNP,S20 1HQ
Department of Health,NHS Sheffield CCG,28/02/2021,C&M-PMS DES Minor Surgery,PRC DELEGATED CO-COMMISSIONING,SOTHALL MEDICAL CENTRE,35594624,"1,365.00",DEMSUP,S20 1HQ
Department of Health,NHS Sheffield CCG,28/02/2021,C&M-PMS Out of Hours Opt Outs,PRC DELEGATED CO-COMMISSIONING,SOTHALL MEDICAL CENTRE,35594624,15.89,APMOOH,S20 1HQ
Department of Health,NHS Sheffield CCG,28/02/2021,C&M-PMS PCN DES Participation,PRC DELEGATED CO-COMMISSIONING,SOTHALL MEDICAL CENTRE,35594624,"2,710.63",PARTIP,S20 1HQ
Department of Health,NHS Sheffield CCG,28/02/2021,C&M-PMS PCO Locum Adop/Pat/Mat,PRC DELEGATED CO-COMMISSIONING,SOTHALL MEDICAL CENTRE,35594624,"8,010.13",SICKC,S20 1HQ
Department of Health,NHS Sheffield CCG,28/02/2021,C&M-PMS Prem Notional Rent,PRC DELEGATED CO-COMMISSIONING,SOTHALL MEDICAL CENTRE,35594624,"5,116.67",NRENT,S20 1HQ
Department of Health,NHS Sheffield CCG,28/02/2021,C&M-PMS QOF Aspiration,PRC DELEGATED CO-COMMISSIONING,SOTHALL MEDICAL CENTRE,35594624,"8,491.33",QUASPP,S20 1HQ
Department of Health,NHS Sheffield CCG,28/02/2021,Cont Care- Adult 100% Fully Funded,CHC ADULT FULLY FUNDED,SOUTH YORKSHIRE HOUSING ASSOCIATION LTD,35558731,"25,500.00",Birch Avenue - Additional Staff February 21,S1 4HF
Department of Health,NHS Sheffield CCG,28/02/2021,Cont Care- Adult 100% Fully Funded,CHC ADULT FULLY FUNDED,SOUTH YORKSHIRE HOUSING ASSOCIATION LTD,35558732,"46,763.59",Birch Avenue - February 21,S1 4HF
Department of Health,NHS Sheffield CCG,28/02/2021,Clinical&Medical-Independent Sector,MENTAL HEALTH CONTRACTS,SOUTH YORKSHIRE HOUSING ASSOCIATION LTD,35558734,"34,434.83",Lister Avenue - February 21,S1 4HF
Department of Health,NHS Sheffield CCG,28/02/2021,Cont Care-Physical Disab (<65),CHC ADULT FULLY FUNDED,SOUTH YORKSHIRE HOUSING ASSOCIATION LTD,35637106,"59,142.80",CHC SCHEDULE FEBRUARY 2021 - Birch Avenue Nursing Home (SYHA),S35 1RQ
Department of Health,NHS Sheffield CCG,28/02/2021,Clinical&Medical-Voluntary Sector,COLLABORATIVE COMMISSIONING,SOUTH YORKSHIRE HOUSING ASSOCIATION LTD,35804192,"90,000.00",,S1 4EB
Department of Health,NHS Sheffield CCG,28/02/2021,C&M-PMS Contract Value,PRC DELEGATED CO-COMMISSIONING,SOUTHEY GREEN MEDICAL CENTRE,35594626,"25,584.63",BABALP,S5 7QB
Department of Health,NHS Sheffield CCG,28/02/2021,C&M-PMS Funding Differential Review,PRC DELEGATED CO-COMMISSIONING,SOUTHEY GREEN MEDICAL CENTRE,35594626,612.28,ZFUNFP,S5 7QB
Department of Health,NHS Sheffield CCG,28/02/2021,C&M-PMS Out of Hours Opt Outs,PRC DELEGATED CO-COMMISSIONING,SOUTHEY GREEN MEDICAL CENTRE,35594626,51.11,APMOOH,S5 7QB
Department of Health,NHS Sheffield CCG,28/02/2021,C&M-PMS PCN DES Participation,PRC DELEGATED CO-COMMISSIONING,SOUTHEY GREEN MEDICAL CENTRE,35594626,475.95,PARTIP,S5 7QB
Department of Health,NHS Sheffield CCG,28/02/2021,C&M-PMS Prem Notional Rent,PRC DELEGATED CO-COMMISSIONING,SOUTHEY GREEN MEDICAL CENTRE,35594626,"3,362.50",NRENT,S5 7QB
Department of Health,NHS Sheffield CCG,28/02/2021,C&M-PMS QOF Aspiration,PRC DELEGATED CO-COMMISSIONING,SOUTHEY GREEN MEDICAL CENTRE,35594626,"2,637.54",QUASPP,S5 7QB
Department of Health,NHS Sheffield CCG,28/02/2021,C&M-GMS Cost of Drugs -Prescribing,LOCAL ENHANCED SERVICES,STANNINGTON MEDICAL CENTRE,35767554,324.65,DRGP,S6 6BX
Department of Health,NHS Sheffield CCG,28/02/2021,C&M-GMS DES Minor Surgery,PRC DELEGATED CO-COMMISSIONING,STANNINGTON MEDICAL CENTRE,35767554,40.00,DEMSUG,S6 6BX
Department of Health,NHS Sheffield CCG,28/02/2021,C&M-GMS Global Sum,PRC DELEGATED CO-COMMISSIONING,STANNINGTON MEDICAL CENTRE,35767554,"26,694.60",GSUMG,S6 6BX
Department of Health,NHS Sheffield CCG,28/02/2021,C&M-GMS Prem Notional Rent,PRC DELEGATED CO-COMMISSIONING,STANNINGTON MEDICAL CENTRE,35767554,"2,575.00",NRENT,S6 6BX
Department of Health,NHS Sheffield CCG,28/02/2021,C&M-GMS Prof Fees Prescribing,PRC DELEGATED CO-COMMISSIONING,STANNINGTON MEDICAL CENTRE,35767554,88.08,DRGPPF,S6 6BX
Department of Health,NHS Sheffield CCG,28/02/2021,C&M-GMS QOF Aspiration,PRC DELEGATED CO-COMMISSIONING,STANNINGTON MEDICAL CENTRE,35767554,"3,017.79",QUASPG,S6 6BX
Department of Health,NHS Sheffield CCG,28/02/2021,C&M-GMS Cost of Drugs -Prescribing,LOCAL ENHANCED SERVICES,STONECROFT MEDICAL CENTRE,35767552,"1,282.78",DRGP,S12 2LJ
Department of Health,NHS Sheffield CCG,28/02/2021,C&M-GMS DES Minor Surgery,PRC DELEGATED CO-COMMISSIONING,STONECROFT MEDICAL CENTRE,35767552,440.00,DEMSUG,S12 2LJ
Department of Health,NHS Sheffield CCG,28/02/2021,C&M-GMS Global Sum,PRC DELEGATED CO-COMMISSIONING,STONECROFT MEDICAL CENTRE,35767552,"34,436.50",GSUMG,S12 2LJ
Department of Health,NHS Sheffield CCG,28/02/2021,C&M-GMS PCN DES Participation,PRC DELEGATED CO-COMMISSIONING,STONECROFT MEDICAL CENTRE,35767552,"1,337.22",PARTIG,S12 2LJ
Department of Health,NHS Sheffield CCG,28/02/2021,C&M-GMS Prem Notional Rent,PRC DELEGATED CO-COMMISSIONING,STONECROFT MEDICAL CENTRE,35767552,"2,808.33",NRENT,S12 2LJ
Department of Health,NHS Sheffield CCG,28/02/2021,C&M-GMS Prof Fees Prescribing,PRC DELEGATED CO-COMMISSIONING,STONECROFT MEDICAL CENTRE,35767552,381.67,DRGPPF,S12 2LJ
Department of Health,NHS Sheffield CCG,28/02/2021,C&M-GMS QOF Aspiration,PRC DELEGATED CO-COMMISSIONING,STONECROFT MEDICAL CENTRE,35767552,"4,246.35",QUASPG,S12 2LJ
Department of Health,NHS Sheffield CCG,28/02/2021,Training Expenses,BEREAVEMENT SERVICE,SURVIVORS OF BEREAVEMENT BY SUICIDE,35715600,"25,808.75",,DE7 5GU
Department of Health,NHS Sheffield CCG,28/02/2021,Clinical&Medical-Independent Sector,MENTAL HEALTH CONTRACTS,SUSASH GB LTD T/A EAGLE HOUSE,35558733,"30,091.75",Eagle House - February 21,S11 8NP
Department of Health,NHS Sheffield CCG,28/02/2021,Cont Care-Physical Disab (<65),CHC ADULT FULLY FUNDED,SUSASH GB LTD T/A EAGLE HOUSE,35637158,"25,735.24",CHC SCHEDULE FEBRUARY 2021 - Eagle House Nursing Home (Susash GB Ltd),S11 8NP
Department of Health,NHS Sheffield CCG,28/02/2021,C&M-GMS DES Learn Dsblty Hlth Chk,PRC DELEGATED CO-COMMISSIONING,TOTLEY RISE MEDICAL CENTRE,35783638,280.00,LEARNG,S17 4DQ
Department of Health,NHS Sheffield CCG,28/02/2021,C&M-GMS DES Minor Surgery,PRC DELEGATED CO-COMMISSIONING,TOTLEY RISE MEDICAL CENTRE,35783638,360.00,DEMSUG,S17 4DQ
Department of Health,NHS Sheffield CCG,28/02/2021,C&M-GMS Global Sum,PRC DELEGATED CO-COMMISSIONING,TOTLEY RISE MEDICAL CENTRE,35783638,"27,383.57",GSUMG,S17 4DQ
Department of Health,NHS Sheffield CCG,28/02/2021,C&M-GMS PCN DES Participation,PRC DELEGATED CO-COMMISSIONING,TOTLEY RISE MEDICAL CENTRE,35783638,"1,063.31",PARTIG,S17 4DQ
Department of Health,NHS Sheffield CCG,28/02/2021,C&M-GMS PCO Other,PRC DELEGATED CO-COMMISSIONING,TOTLEY RISE MEDICAL CENTRE,35783638,"2,632.00",CQCRG,S17 4DQ
Department of Health,NHS Sheffield CCG,28/02/2021,C&M-GMS Prem Notional Rent,PRC DELEGATED CO-COMMISSIONING,TOTLEY RISE MEDICAL CENTRE,35783638,"1,604.17",NRENT,S17 4DQ
Department of Health,NHS Sheffield CCG,28/02/2021,C&M-GMS QOF Aspiration,PRC DELEGATED CO-COMMISSIONING,TOTLEY RISE MEDICAL CENTRE,35783638,"2,402.35",QUASPG,S17 4DQ
Department of Health,NHS Sheffield CCG,28/02/2021,C&M-GMS Cost of Drugs -Prescribing,LOCAL ENHANCED SERVICES,TRAMWAYS MEDICAL CENTRE,35767557,"2,685.85",DRGP,S6 4JQ
Department of Health,NHS Sheffield CCG,28/02/2021,C&M-GMS DES Learn Dsblty Hlth Chk,PRC DELEGATED CO-COMMISSIONING,TRAMWAYS MEDICAL CENTRE,35767557,140.00,LEARNG,S6 4JQ
Department of Health,NHS Sheffield CCG,28/02/2021,C&M-GMS DES Minor Surgery,PRC DELEGATED CO-COMMISSIONING,TRAMWAYS MEDICAL CENTRE,35767557,"6,650.00",DEMSUG,S6 4JQ
Department of Health,NHS Sheffield CCG,28/02/2021,C&M-GMS Global Sum,PRC DELEGATED CO-COMMISSIONING,TRAMWAYS MEDICAL CENTRE,35767557,"63,409.68",GSUMG,S6 4JQ
Department of Health,NHS Sheffield CCG,28/02/2021,C&M-GMS PCN DES Participation,PRC DELEGATED CO-COMMISSIONING,TRAMWAYS MEDICAL CENTRE,35767557,"2,516.92",PARTIG,S6 4JQ
Department of Health,NHS Sheffield CCG,28/02/2021,C&M-GMS Prem Cost Rent,PRC DELEGATED CO-COMMISSIONING,TRAMWAYS MEDICAL CENTRE,35767557,"4,012.75",COST,S6 4JQ
Department of Health,NHS Sheffield CCG,28/02/2021,C&M-GMS Prof Fees Prescribing,PRC DELEGATED CO-COMMISSIONING,TRAMWAYS MEDICAL CENTRE,35767557,362.99,DRGPPF,S6 4JQ
Department of Health,NHS Sheffield CCG,28/02/2021,C&M-GMS QOF Aspiration,PRC DELEGATED CO-COMMISSIONING,TRAMWAYS MEDICAL CENTRE,35767557,"5,986.86",QUASPG,S6 4JQ
Department of Health,NHS Sheffield CCG,28/02/2021,C&M-PMS Contract Value,PRC DELEGATED CO-COMMISSIONING,UNIVERSITY HEALTH SERVICE,35594629,"-14,869.61",BABALP,S3 7QP
Department of Health,NHS Sheffield CCG,28/02/2021,C&M-PMS DES Extended Hours Access,PRC DELEGATED CO-COMMISSIONING,UNIVERSITY HEALTH SERVICE,35594629,"-4,929.28",EXTHDP,S3 7QP
Department of Health,NHS Sheffield CCG,28/02/2021,C&M-PMS GP Statutory Levy,PRC DELEGATED CO-COMMISSIONING,UNIVERSITY HEALTH SERVICE,35594629,"-1,422.26",STATL,S3 7QP
Department of Health,NHS Sheffield CCG,28/02/2021,C&M-PMS Out of Hours Opt Outs,PRC DELEGATED CO-COMMISSIONING,UNIVERSITY HEALTH SERVICE,35594629,"-10,176.48",APMOOH,S3 7QP
Department of Health,NHS Sheffield CCG,28/02/2021,C&M-PMS PCN DES Clinical Director,PRC DELEGATED CO-COMMISSIONING,UNIVERSITY HEALTH SERVICE,35594629,"-2,454.44",CLINDP,S3 7QP
Department of Health,NHS Sheffield CCG,28/02/2021,C&M-PMS PCN DES PCN support,LOCAL ENHANCED SERVICES,UNIVERSITY HEALTH SERVICE,35594629,"-5,099.25",PCNSUP,S3 7QP
Department of Health,NHS Sheffield CCG,28/02/2021,C&M-PMS PCN DES Participation,PRC DELEGATED CO-COMMISSIONING,UNIVERSITY HEALTH SERVICE,35594629,"-3,871.12",PARTIP,S3 7QP
Department of Health,NHS Sheffield CCG,28/02/2021,C&M-PMS Contract Value,PRC DELEGATED CO-COMMISSIONING,UNIVERSITY HEALTH SERVICE,35594630,"213,413.54",BABALP,S3 7QP
Department of Health,NHS Sheffield CCG,28/02/2021,C&M-PMS DES Extended Hours Access,PRC DELEGATED CO-COMMISSIONING,UNIVERSITY HEALTH SERVICE,35594630,"9,865.48",EXTHDP,S3 7QP
Department of Health,NHS Sheffield CCG,28/02/2021,C&M-PMS Out of Hours Opt Outs,PRC DELEGATED CO-COMMISSIONING,UNIVERSITY HEALTH SERVICE,35594630,712.50,APMOOH,S3 7QP
Department of Health,NHS Sheffield CCG,28/02/2021,C&M-PMS PCN DES Clinical Director,PRC DELEGATED CO-COMMISSIONING,UNIVERSITY HEALTH SERVICE,35594630,"4,902.14",CLINDP,S3 7QP
Department of Health,NHS Sheffield CCG,28/02/2021,C&M-PMS PCN DES PCN support,LOCAL ENHANCED SERVICES,UNIVERSITY HEALTH SERVICE,35594630,"10,198.63",PCNSUP,S3 7QP
Department of Health,NHS Sheffield CCG,28/02/2021,C&M-PMS PCN DES Participation,PRC DELEGATED CO-COMMISSIONING,UNIVERSITY HEALTH SERVICE,35594630,"7,748.83",PARTIP,S3 7QP
Department of Health,NHS Sheffield CCG,28/02/2021,C&M-PMS Prem Notional Rent,PRC DELEGATED CO-COMMISSIONING,UNIVERSITY HEALTH SERVICE,35594630,"15,833.33",NRENT,S3 7QP
Department of Health,NHS Sheffield CCG,28/02/2021,C&M-PMS QOF Aspiration,PRC DELEGATED CO-COMMISSIONING,UNIVERSITY HEALTH SERVICE,35594630,"7,529.34",QUASPP,S3 7QP
Department of Health,NHS Sheffield CCG,28/02/2021,Other Research Exp,Nursing and Quality Programme,UNIVERSITY OF SHEFFIELD,35528529,"58,413.94",,S10 2TN
Department of Health,NHS Sheffield CCG,28/02/2021,C&M-GMS Cost of Drugs -Prescribing,LOCAL ENHANCED SERVICES,UPPERTHORPE MEDICAL CENTRE,35767560,"4,993.74",DRGP,S6 3FT
Department of Health,NHS Sheffield CCG,28/02/2021,C&M-GMS DES Learn Dsblty Hlth Chk,PRC DELEGATED CO-COMMISSIONING,UPPERTHORPE MEDICAL CENTRE,35767560,140.00,LEARNG,S6 3FT
Department of Health,NHS Sheffield CCG,28/02/2021,C&M-GMS DES Minor Surgery,PRC DELEGATED CO-COMMISSIONING,UPPERTHORPE MEDICAL CENTRE,35767560,520.00,DEMSUG,S6 3FT
Department of Health,NHS Sheffield CCG,28/02/2021,C&M-GMS Global Sum,PRC DELEGATED CO-COMMISSIONING,UPPERTHORPE MEDICAL CENTRE,35767560,"89,651.98",GSUMG,S6 3FT
Department of Health,NHS Sheffield CCG,28/02/2021,C&M-GMS PCN DES Participation,PRC DELEGATED CO-COMMISSIONING,UPPERTHORPE MEDICAL CENTRE,35767560,"3,488.03",PARTIG,S6 3FT
Department of Health,NHS Sheffield CCG,28/02/2021,C&M-GMS Prem Notional Rent,PRC DELEGATED CO-COMMISSIONING,UPPERTHORPE MEDICAL CENTRE,35767560,"2,547.83",NRENT,S6 3FT
Department of Health,NHS Sheffield CCG,28/02/2021,C&M-GMS Prof Fees Prescribing,PRC DELEGATED CO-COMMISSIONING,UPPERTHORPE MEDICAL CENTRE,35767560,"1,067.60",DRGPPF,S6 3FT
Department of Health,NHS Sheffield CCG,28/02/2021,C&M-GMS QOF Aspiration,PRC DELEGATED CO-COMMISSIONING,UPPERTHORPE MEDICAL CENTRE,35767560,"9,300.36",QUASPG,S6 3FT
Department of Health,NHS Sheffield CCG,28/02/2021,C&M-PMS Contract Value,PRC DELEGATED CO-COMMISSIONING,UPWELL STREET SURGERY,35594632,"37,024.50",BABALP,S4 8AN
Department of Health,NHS Sheffield CCG,28/02/2021,C&M-PMS DES Learn Dsblty Hlth Chk,PRC DELEGATED CO-COMMISSIONING,UPWELL STREET SURGERY,35594632,700.00,LEARNP,S4 8AN
Department of Health,NHS Sheffield CCG,28/02/2021,C&M-PMS DES Minor Surgery,PRC DELEGATED CO-COMMISSIONING,UPWELL STREET SURGERY,35594632,320.00,DEMSUP,S4 8AN
Department of Health,NHS Sheffield CCG,28/02/2021,C&M-PMS Funding Differential Review,PRC DELEGATED CO-COMMISSIONING,UPWELL STREET SURGERY,35594632,911.19,ZFUNFP,S4 8AN
Department of Health,NHS Sheffield CCG,28/02/2021,C&M-PMS Out of Hours Opt Outs,PRC DELEGATED CO-COMMISSIONING,UPWELL STREET SURGERY,35594632,38.97,APMOOH,S4 8AN
Department of Health,NHS Sheffield CCG,28/02/2021,C&M-PMS PCN DES Participation,PRC DELEGATED CO-COMMISSIONING,UPWELL STREET SURGERY,35594632,"1,375.79",PARTIP,S4 8AN
Department of Health,NHS Sheffield CCG,28/02/2021,C&M-PMS PCO Other,PRC DELEGATED CO-COMMISSIONING,UPWELL STREET SURGERY,35594632,"3,179.00",CQCRP,S4 8AN
Department of Health,NHS Sheffield CCG,28/02/2021,C&M-PMS Prem Notional Rent,PRC DELEGATED CO-COMMISSIONING,UPWELL STREET SURGERY,35594632,"8,137.50",NRENT,S4 8AN
Department of Health,NHS Sheffield CCG,28/02/2021,C&M-PMS Prem Rates,PRC DELEGATED CO-COMMISSIONING,UPWELL STREET SURGERY,35594632,"1,362.00",RANDRP,S4 8AN
Department of Health,NHS Sheffield CCG,28/02/2021,C&M-PMS QOF Aspiration,PRC DELEGATED CO-COMMISSIONING,UPWELL STREET SURGERY,35594632,"3,919.87",QUASPP,S4 8AN
Department of Health,NHS Sheffield CCG,28/02/2021,C&M-PMS DES Extended Hours Access,PRC DELEGATED CO-COMMISSIONING,VALLEY MEDICAL CENTRE,35594633,"-2,507.53",EXTHDP,S36 1BX
Department of Health,NHS Sheffield CCG,28/02/2021,C&M-PMS GP Statutory Levy,PRC DELEGATED CO-COMMISSIONING,VALLEY MEDICAL CENTRE,35594633,-336.63,STATL,S36 1BX
Department of Health,NHS Sheffield CCG,28/02/2021,C&M-PMS Out of Hours Opt Outs,PRC DELEGATED CO-COMMISSIONING,VALLEY MEDICAL CENTRE,35594633,"-3,870.09",APMOOH,S36 1BX
Department of Health,NHS Sheffield CCG,28/02/2021,C&M-PMS PCN DES Clinical Director,PRC DELEGATED CO-COMMISSIONING,VALLEY MEDICAL CENTRE,35594633,"-1,248.58",CLINDP,S36 1BX
Department of Health,NHS Sheffield CCG,28/02/2021,C&M-PMS PCN DES PCN support,LOCAL ENHANCED SERVICES,VALLEY MEDICAL CENTRE,35594633,"-2,594.00",PCNSUP,S36 1BX
Department of Health,NHS Sheffield CCG,28/02/2021,C&M-PMS PCN DES Participation,PRC DELEGATED CO-COMMISSIONING,VALLEY MEDICAL CENTRE,35594633,"-1,502.00",PARTIP,S36 1BX
Department of Health,NHS Sheffield CCG,28/02/2021,C&M-PMS Contract Value,PRC DELEGATED CO-COMMISSIONING,VALLEY MEDICAL CENTRE,35594634,"81,276.67",BABALP,S36 1BX
Department of Health,NHS Sheffield CCG,28/02/2021,C&M-PMS Cost of Drugs -Prescribing,LOCAL ENHANCED SERVICES,VALLEY MEDICAL CENTRE,35594634,54.67,DRGP,S36 1BX
Department of Health,NHS Sheffield CCG,28/02/2021,C&M-PMS DES Extended Hours Access,PRC DELEGATED CO-COMMISSIONING,VALLEY MEDICAL CENTRE,35594634,"5,018.52",EXTHDP,S36 1BX
Department of Health,NHS Sheffield CCG,28/02/2021,C&M-PMS DES Minor Surgery,PRC DELEGATED CO-COMMISSIONING,VALLEY MEDICAL CENTRE,35594634,"1,295.00",DEMSUP,S36 1BX
Department of Health,NHS Sheffield CCG,28/02/2021,C&M-PMS PCN DES Clinical Director,PRC DELEGATED CO-COMMISSIONING,VALLEY MEDICAL CENTRE,35594634,"2,493.70",CLINDP,S36 1BX
Department of Health,NHS Sheffield CCG,28/02/2021,C&M-PMS PCN DES PCN support,LOCAL ENHANCED SERVICES,VALLEY MEDICAL CENTRE,35594634,"5,188.00",PCNSUP,S36 1BX
Department of Health,NHS Sheffield CCG,28/02/2021,C&M-PMS PCN DES Participation,PRC DELEGATED CO-COMMISSIONING,VALLEY MEDICAL CENTRE,35594634,"3,006.56",PARTIP,S36 1BX
Department of Health,NHS Sheffield CCG,28/02/2021,C&M-PMS PCO Locum Adop/Pat/Mat,PRC DELEGATED CO-COMMISSIONING,VALLEY MEDICAL CENTRE,35594634,"8,725.53",SICKC,S36 1BX
Department of Health,NHS Sheffield CCG,28/02/2021,C&M-PMS Prem Water Rates,PRC DELEGATED CO-COMMISSIONING,VALLEY MEDICAL CENTRE,35594634,248.18,RAMWP,S36 1BX
Department of Health,NHS Sheffield CCG,28/02/2021,C&M-PMS Prof fees Prescribing,PRC DELEGATED CO-COMMISSIONING,VALLEY MEDICAL CENTRE,35594634,13.35,DRGPPF,S36 1BX
Department of Health,NHS Sheffield CCG,28/02/2021,C&M-PMS QOF Aspiration,PRC DELEGATED CO-COMMISSIONING,VALLEY MEDICAL CENTRE,35594634,"9,062.68",QUASPP,S36 1BX
Department of Health,NHS Sheffield CCG,28/02/2021,Cont Care-Physical Disab (<65),CHC ADULT FULLY FUNDED,VALORUM CARE LTD,35637162,"35,594.00",CHC SCHEDULE FEBRUARY 2021 - Valorum Care Limited (Mickley Hall),LS19 7RW
Department of Health,NHS Sheffield CCG,28/02/2021,C&M-GMS DES Minor Surgery,PRC DELEGATED CO-COMMISSIONING,WALKLEY HOUSE MEDICAL CENTRE,35767566,200.00,DEMSUG,S6 3TN
Department of Health,NHS Sheffield CCG,28/02/2021,C&M-GMS Global Sum,PRC DELEGATED CO-COMMISSIONING,WALKLEY HOUSE MEDICAL CENTRE,35767566,"90,216.55",GSUMG,S6 3TN
Department of Health,NHS Sheffield CCG,28/02/2021,C&M-GMS PCN DES Participation,PRC DELEGATED CO-COMMISSIONING,WALKLEY HOUSE MEDICAL CENTRE,35767566,"3,522.09",PARTIG,S6 3TN
Department of Health,NHS Sheffield CCG,28/02/2021,C&M-GMS Prem Notional Rent,PRC DELEGATED CO-COMMISSIONING,WALKLEY HOUSE MEDICAL CENTRE,35767566,"5,635.50",NRENT,S6 3TN
Department of Health,NHS Sheffield CCG,28/02/2021,C&M-GMS QOF Aspiration,PRC DELEGATED CO-COMMISSIONING,WALKLEY HOUSE MEDICAL CENTRE,35767566,"8,644.85",QUASPG,S6 3TN
Department of Health,NHS Sheffield CCG,28/02/2021,C&M-GMS Cost of Drugs -Prescribing,LOCAL ENHANCED SERVICES,WHITE HOUSE SURGERY SHEFFIELD,35767564,601.23,DRGP,S2 1SL
Department of Health,NHS Sheffield CCG,28/02/2021,C&M-GMS DES Minor Surgery,PRC DELEGATED CO-COMMISSIONING,WHITE HOUSE SURGERY SHEFFIELD,35767564,40.00,DEMSUG,S2 1SL
Department of Health,NHS Sheffield CCG,28/02/2021,C&M-GMS Global Sum,PRC DELEGATED CO-COMMISSIONING,WHITE HOUSE SURGERY SHEFFIELD,35767564,"55,450.86",GSUMG,S2 1SL
Department of Health,NHS Sheffield CCG,28/02/2021,C&M-GMS PCN DES Participation,PRC DELEGATED CO-COMMISSIONING,WHITE HOUSE SURGERY SHEFFIELD,35767564,"2,112.47",PARTIG,S2 1SL
Department of Health,NHS Sheffield CCG,28/02/2021,C&M-GMS Prem Notional Rent,PRC DELEGATED CO-COMMISSIONING,WHITE HOUSE SURGERY SHEFFIELD,35767564,"9,412.50",NRENT,S2 1SL
Department of Health,NHS Sheffield CCG,28/02/2021,C&M-GMS Prof Fees Prescribing,PRC DELEGATED CO-COMMISSIONING,WHITE HOUSE SURGERY SHEFFIELD,35767564,264.24,DRGPPF,S2 1SL
Department of Health,NHS Sheffield CCG,28/02/2021,C&M-GMS QOF Aspiration,PRC DELEGATED CO-COMMISSIONING,WHITE HOUSE SURGERY SHEFFIELD,35767564,"6,054.80",QUASPG,S2 1SL
Department of Health,NHS Sheffield CCG,28/02/2021,Cont Care-Physical Disab (<65),CHC ADULT FULLY FUNDED,WILLOWBECK HEALTH CARE LTD,35637139,"138,924.24",CHC SCHEDULE FEBRUARY 2021 - Willowbeck Health Care Ltd (Exemplar HC),S4 8AR
Department of Health,NHS Sheffield CCG,28/02/2021,C&M-PMS Contract Value,PRC DELEGATED CO-COMMISSIONING,WINCOBANK MEDICAL CENTRE,35594638,"63,698.76",BABALP,S9 1DJ
Department of Health,NHS Sheffield CCG,28/02/2021,C&M-PMS DES Minor Surgery,PRC DELEGATED CO-COMMISSIONING,WINCOBANK MEDICAL CENTRE,35594638,"1,600.00",DEMSUP,S9 1DJ
Department of Health,NHS Sheffield CCG,28/02/2021,C&M-PMS Out of Hours Opt Outs,PRC DELEGATED CO-COMMISSIONING,WINCOBANK MEDICAL CENTRE,35594638,22.05,APMOOH,S9 1DJ
Department of Health,NHS Sheffield CCG,28/02/2021,C&M-PMS PCN DES Participation,PRC DELEGATED CO-COMMISSIONING,WINCOBANK MEDICAL CENTRE,35594638,"2,384.65",PARTIP,S9 1DJ
Department of Health,NHS Sheffield CCG,28/02/2021,C&M-PMS PCO Other,PRC DELEGATED CO-COMMISSIONING,WINCOBANK MEDICAL CENTRE,35594638,"4,902.00",CQCRP,S9 1DJ
Department of Health,NHS Sheffield CCG,28/02/2021,C&M-PMS Prem Healthcentre Rent,PRC DELEGATED CO-COMMISSIONING,WINCOBANK MEDICAL CENTRE,35594638,"46,340.33",HEALTH,S9 1DJ
Department of Health,NHS Sheffield CCG,28/02/2021,C&M-PMS QOF Aspiration,PRC DELEGATED CO-COMMISSIONING,WINCOBANK MEDICAL CENTRE,35594638,"5,972.45",QUASPP,S9 1DJ
Department of Health,NHS Sheffield CCG,28/02/2021,C&M-PMS Contract Value,PRC DELEGATED CO-COMMISSIONING,WOODHOUSE HEALTH CENTRE,35594635,"-2,942.33",BABALP,S13 7LY
Department of Health,NHS Sheffield CCG,28/02/2021,C&M-PMS Funding Differential Review,PRC DELEGATED CO-COMMISSIONING,WOODHOUSE HEALTH CENTRE,35594635,"-2,095.91",ZFUNFP,S13 7LY
Department of Health,NHS Sheffield CCG,28/02/2021,C&M-PMS GP Statutory Levy,PRC DELEGATED CO-COMMISSIONING,WOODHOUSE HEALTH CENTRE,35594635,-425.53,STATL,S13 7LY
Department of Health,NHS Sheffield CCG,28/02/2021,C&M-PMS Out of Hours Opt Outs,PRC DELEGATED CO-COMMISSIONING,WOODHOUSE HEALTH CENTRE,35594635,"-4,865.27",APMOOH,S13 7LY
Department of Health,NHS Sheffield CCG,28/02/2021,C&M-PMS PCN DES Participation,PRC DELEGATED CO-COMMISSIONING,WOODHOUSE HEALTH CENTRE,35594635,"-1,913.91",PARTIP,S13 7LY
Department of Health,NHS Sheffield CCG,28/02/2021,C&M-PMS Contract Value,PRC DELEGATED CO-COMMISSIONING,WOODHOUSE HEALTH CENTRE,35594636,"102,206.58",BABALP,S13 7LY
Department of Health,NHS Sheffield CCG,28/02/2021,C&M-PMS DES Learn Dsblty Hlth Chk,PRC DELEGATED CO-COMMISSIONING,WOODHOUSE HEALTH CENTRE,35594636,280.00,LEARNP,S13 7LY
Department of Health,NHS Sheffield CCG,28/02/2021,C&M-PMS DES Minor Surgery,PRC DELEGATED CO-COMMISSIONING,WOODHOUSE HEALTH CENTRE,35594636,880.00,DEMSUP,S13 7LY
Department of Health,NHS Sheffield CCG,28/02/2021,C&M-PMS Funding Differential Review,PRC DELEGATED CO-COMMISSIONING,WOODHOUSE HEALTH CENTRE,35594636,"2,095.91",ZFUNFP,S13 7LY
Department of Health,NHS Sheffield CCG,28/02/2021,C&M-PMS Out of Hours Opt Outs,PRC DELEGATED CO-COMMISSIONING,WOODHOUSE HEALTH CENTRE,35594636,139.35,APMOOH,S13 7LY
Department of Health,NHS Sheffield CCG,28/02/2021,C&M-PMS PCN DES Participation,PRC DELEGATED CO-COMMISSIONING,WOODHOUSE HEALTH CENTRE,35594636,"1,913.91",PARTIP,S13 7LY
Department of Health,NHS Sheffield CCG,28/02/2021,C&M-PMS Prem Notional Rent,PRC DELEGATED CO-COMMISSIONING,WOODHOUSE HEALTH CENTRE,35594636,"6,338.58",NRENT,S13 7LY
Department of Health,NHS Sheffield CCG,28/02/2021,C&M-PMS Prem Rates,PRC DELEGATED CO-COMMISSIONING,WOODHOUSE HEALTH CENTRE,35594636,286.27,RANDRP,S13 7LY
Department of Health,NHS Sheffield CCG,28/02/2021,C&M-PMS QOF Aspiration,PRC DELEGATED CO-COMMISSIONING,WOODHOUSE HEALTH CENTRE,35594636,"13,397.77",QUASPP,S13 7LY
Department of Health,NHS Sheffield CCG,28/02/2021,C&M-PMS Contract Value,PRC DELEGATED CO-COMMISSIONING,WOODSEATS MEDICAL CENTRE,35600299,-274.07,BABALP,S8 0SH
Department of Health,NHS Sheffield CCG,28/02/2021,C&M-PMS GP Statutory Levy,PRC DELEGATED CO-COMMISSIONING,WOODSEATS MEDICAL CENTRE,35600299,-370.97,STATL,S8 0SH
Department of Health,NHS Sheffield CCG,28/02/2021,C&M-PMS Out of Hours Opt Outs,PRC DELEGATED CO-COMMISSIONING,WOODSEATS MEDICAL CENTRE,35600299,"-3,900.56",APMOOH,S8 0SH
Department of Health,NHS Sheffield CCG,28/02/2021,C&M-PMS PCN DES Participation,PRC DELEGATED CO-COMMISSIONING,WOODSEATS MEDICAL CENTRE,35600299,"-1,504.80",PARTIP,S8 0SH
Department of Health,NHS Sheffield CCG,28/02/2021,C&M-PMS Contract Value,PRC DELEGATED CO-COMMISSIONING,WOODSEATS MEDICAL CENTRE,35600300,"81,840.47",BABALP,S8 0SH
Department of Health,NHS Sheffield CCG,28/02/2021,C&M-PMS DES Learn Dsblty Hlth Chk,PRC DELEGATED CO-COMMISSIONING,WOODSEATS MEDICAL CENTRE,35600300,"2,940.00",LEARNP,S8 0SH
Department of Health,NHS Sheffield CCG,28/02/2021,C&M-PMS DES Minor Surgery,PRC DELEGATED CO-COMMISSIONING,WOODSEATS MEDICAL CENTRE,35600300,720.00,DEMSUP,S8 0SH
Department of Health,NHS Sheffield CCG,28/02/2021,C&M-PMS Out of Hours Opt Outs,PRC DELEGATED CO-COMMISSIONING,WOODSEATS MEDICAL CENTRE,35600300,13.08,APMOOH,S8 0SH
Department of Health,NHS Sheffield CCG,28/02/2021,C&M-PMS PCN DES Participation,PRC DELEGATED CO-COMMISSIONING,WOODSEATS MEDICAL CENTRE,35600300,"3,012.16",PARTIP,S8 0SH
Department of Health,NHS Sheffield CCG,28/02/2021,C&M-PMS Prem Notional Rent,PRC DELEGATED CO-COMMISSIONING,WOODSEATS MEDICAL CENTRE,35600300,"11,666.67",NRENT,S8 0SH
Department of Health,NHS Sheffield CCG,28/02/2021,C&M-PMS QOF Aspiration,PRC DELEGATED CO-COMMISSIONING,WOODSEATS MEDICAL CENTRE,35600300,"8,588.98",QUASPP,S8 0SH
Department of Health,NHS Sheffield CCG,28/02/2021,Hcare Srv Rec NHS Trust-Contract Baseline,AMBULANCE SERVICES,YORKSHIRE AMBULANCE SERVICE NHS TRUST,35629761,"2,406,606.96",,WF2 0XQ
